Workbook

Sheet SkillConfig
A1: ID | B1: PieceID | C1: power | D1: name | E1: dec | H1: attribute | I1: icon | J1: scriptName | K1: IDGroup | L1: timelineName | M1: cd | N1: SkillType | O1: level | P1: effectValue | Q1: intensifierIndex | R1: addPropertyType | S1: addPropertyValue | T1: PromoteLan | U1: PromoteLanPara | V1: PromoteLanPara
A2: int | B2: int | C2: float | D2: int | E2: int | H2: int | I2: string | J2: string | K2: int | L2: string | M2: float | N2: int | O2: int | P2: float[] | Q2: int[] | R2: int[] | S2: float[] | T2: int | U2: float[] | V2: float[]
A4: 技能ID IDGroup+技能等级 901开头是法宝技能 | B4: 对应的碎片ID | C4: 功法强度 基于标准强度的百分比 50=50% | D4: 名称语言表ID | E4: 描述语言表ID | F4: 技能名称 | G4: 技能效果 | H4: 技能属性 1=金 2=水 4=木 8=火 16=土 | I4: 图标 | J4: 脚本名称 | K4: 技能组 | L4: 技能的timeline表现，没得就不填，这个可以程序填 | M4: 功法：多少圈释放1次 法宝：CD多少秒 | N4: 技能类型: 1=主动功法 2=被动功法 3=法宝技能 4=大道 | O4: 星级 | P4: 效果值 | Q4: 允许被加强的效果下表 | R4: 属性ID表内对应 101=生命百分比 102=攻击百分比 103=防御百分比 106~110=金木水火土灵根 | S4: 具体效果值 | T4: 升星简短描述 | U4: 升星简短描述参数 | V4: 哪边的法宝被影响 0=无 1=前方 -1=后方 | W4: 数值1 | X4: 数值2 | Y4: 数值3 | Z4: 数值4 | AA4: 数值5 | AB4: 数值6 | AC4: 数值7 | AD4: 升星描述
B5: 英雄-主动功法区域
A6: =K6*10+O6-1 -> 11010 | B6: 13001 | C6: 100 | D6: 316 | E6: 739 | F6: 太虚幻剑经 | G6: 身体周围幻化出{0}柄细剑，每柄细剑对敌人造成{1}%伤害，并有{2}几率对敌人造成1层流血。 | H6: 1 | I6: =CONCATENATE("icon_s",K6) -> icon_s1101 | J6: =CONCATENATE("S",K6) -> S1101 | K6: 1101 | L6: 1101_timeline_TD | M6: 1 | N6: 1 | O6: 1 | P6: =_xlfn.TEXTJOIN(";",1,W6:AC6) -> 6;60;15 | Q6: 2 | T6: 722 | W6: 6 | X6: 60 | Y6: 15 | AE6: =IF(F6="","",CONCATENATE(F6,"·",CHOOSE(O6,"壹","贰","叁","肆","伍","陆"))) -> 太虚幻剑经·壹
A7: =K7*10+O7-1 -> 11011 | B7: 13001 | C7: 110 | D7: 317 | E7: 740 | F7: 太虚幻剑经 | G7: 身体周围幻化出{0}柄细剑，每柄细剑对敌人造成{1}%伤害，并有{2}几率对敌人造成1层流血。 | H7: 1 | I7: icon_s1101 | J7: =CONCATENATE("S",K7) -> S1101 | K7: 1101 | L7: 1101_timeline_TD | M7: 1 | N7: 1 | O7: 2 | P7: =_xlfn.TEXTJOIN(";",1,W7:AC7) -> 8;60;15 | Q7: 2 | T7: 722 | U7: 2 | W7: 8 | X7: 60 | Y7: 15 | AD7: =CONCATENATE("飞剑数量+",U7) -> 飞剑数量+2 | AE7: =IF(F7="","",CONCATENATE(F7,"·",CHOOSE(O7,"壹","贰","叁","肆","伍","陆"))) -> 太虚幻剑经·贰
A8: 11012 | B8: 13001 | C8: 120 | D8: 318 | E8: 741 | F8: 太虚幻剑经 | G8: 身体周围幻化出{0}柄细剑，每柄细剑对敌人造成{1}%伤害，并有{2}几率对敌人造成1层流血。 | H8: 1 | I8: icon_s1101 | J8: S1101 | K8: 1101 | L8: 1101_timeline_TD | M8: 1 | N8: 1 | O8: 3 | P8: 8;60;15 | Q8: 2 | R8: 101 | S8: 10 | T8: 722 | W8: 8 | X8: 60 | Y8: 15 | AD8: =CONCATENATE("生命+",S8,"%") -> 生命+10% | AE8: 太虚幻剑经·叁
A9: 11013 | B9: 13001 | C9: 130 | D9: 319 | E9: 742 | F9: 太虚幻剑经 | G9: 身体周围幻化出{0}柄细剑，每柄细剑对敌人造成{1}%伤害，并有{2}几率对敌人造成1层流血。 如果敌人有减益状态，则虚剑伤害提升{3}%。 | H9: 1 | I9: icon_s1101 | J9: S1101 | K9: 1101 | L9: 1101_timeline_TD | M9: 1 | N9: 1 | O9: 4 | P9: 9;60;15;20 | Q9: 2 | T9: 722 | U9: 1 | W9: 9 | X9: 60 | Y9: 15 | Z9: 20 | AD9: =CONCATENATE("飞剑数量+",U9,"，对带减益的敌人增伤") -> 飞剑数量+1，对带减益的敌人增伤 | AE9: 太虚幻剑经·肆
A10: 11014 | B10: 13001 | C10: 140 | D10: 320 | E10: 743 | F10: 太虚幻剑经 | G10: 身体周围幻化出{0}柄细剑，每柄细剑对敌人造成{1}%伤害，并有{2}几率对敌人造成1层流血。 如果敌人有减益状态，则虚剑伤害提升{3}%。 | H10: 1 | I10: icon_s1101 | J10: S1101 | K10: 1101 | L10: 1101_timeline_TD | M10: 1 | N10: 1 | O10: 5 | P10: 9;60;15;20 | Q10: 2 | R10: 101 | S10: 20 | T10: 722 | W10: 9 | X10: 60 | Y10: 15 | Z10: 20 | AD10: =CONCATENATE("生命+",S10,"%") -> 生命+20% | AE10: 太虚幻剑经·伍
A11: 11015 | B11: 13001 | C11: 150 | D11: 321 | E11: 744 | F11: 太虚幻剑经 | G11: 身体周围幻化出{0}柄更大体型的虚剑，每柄虚剑对敌人造成{1}%伤害，并有{2}几率对敌人造成1层流血。 如果敌人有减益状态，则虚剑伤害提升{3}%。 | H11: 1 | I11: icon_s1101 | J11: S1101 | K11: 1101 | L11: 1101_timeline_TD | M11: 1 | N11: 1 | O11: 6 | P11: 9;80;15;20 | Q11: 2 | T11: 722 | W11: 9 | X11: 80 | Y11: 15 | Z11: 20 | AD11: 发射伤害更高的幻剑 | AE11: 太虚幻剑经·陆
A13: =K13*10+O13-1 -> 11020 | B13: =B6+1 -> 13002 | C13: 100 | D13: =D6+6 -> 322 | E13: =E6+6 -> 745 | F13: 天罡剑气诀 | G13: 吸收自身灵气凝聚{0}柄大剑，大剑旋转快速穿透敌人对敌人照成{1}%伤害 | H13: 1 | I13: =CONCATENATE("icon_s",K13) -> icon_s1102 | J13: =CONCATENATE("S",K13) -> S1102 | K13: =K6+1 -> 1102 | L13: 1102_timeline_TD | M13: 1 | N13: 1 | O13: 1 | P13: =_xlfn.TEXTJOIN(";",1,W13:AC13) -> 6;90 | Q13: 2 | T13: 722 | W13: 6 | X13: 90 | AE13: 天罡剑气诀·壹
A14: =K14*10+O14-1 -> 11021 | B14: =B7+1 -> 13002 | C14: 110 | D14: =D7+6 -> 323 | E14: 746 | F14: 天罡剑气诀 | G14: 吸收自身灵气凝聚{0}柄大剑，大剑旋转快速穿透敌人对敌人照成{1}%伤害 敌人如果在流血或放血状态，对敌人造成的伤害+{2}% | H14: 1 | I14: =CONCATENATE("icon_s",K14) -> icon_s1102 | J14: =CONCATENATE("S",K14) -> S1102 | K14: =K7+1 -> 1102 | L14: 1102_timeline_TD | M14: 1 | N14: 1 | O14: 2 | P14: =_xlfn.TEXTJOIN(";",1,W14:AC14) -> 6;90;15 | Q14: 2 | T14: 722 | U14: 2 | W14: 6 | X14: 90 | Y14: 15 | AD14: 对流血或放血敌人增伤 | AE14: 天罡剑气诀·贰
A15: 11022 | B15: 13002 | C15: 120 | D15: 324 | E15: 747 | F15: 天罡剑气诀 | G15: 吸收自身灵气凝聚{0}柄大剑，大剑旋转快速穿透敌人对敌人照成{1}%伤害 敌人如果在流血或放血状态，对敌人造成的伤害+{2}% | H15: 1 | I15: icon_s1102 | J15: S1102 | K15: 1102 | L15: 1102_timeline_TD | M15: 1 | N15: 1 | O15: 3 | P15: 6;90;15 | Q15: 2 | R15: 101 | S15: 10 | T15: 722 | W15: 6 | X15: 90 | Y15: 15 | AD15: =CONCATENATE("生命+",S15,"%") -> 生命+10% | AE15: 天罡剑气诀·叁
A16: 11023 | B16: 13002 | C16: 130 | D16: 325 | E16: 748 | F16: 天罡剑气诀 | G16: 吸收自身灵气凝聚{0}柄大剑，大剑旋转快速穿透敌人对敌人照成{1}%伤害 敌人如果在流血或放血状态，对敌人造成的伤害+{2}% 重伤敌人后，如果目标没在放血状态，直接放血且不消耗流血层数 | H16: 1 | I16: icon_s1102 | J16: S1102 | K16: 1102 | L16: 1102_timeline_TD | M16: 1 | N16: 1 | O16: 4 | P16: 6;90;15 | Q16: 2 | T16: 722 | U16: 1 | W16: 6 | X16: 90 | Y16: 15 | AD16: 无条件放血 | AE16: 天罡剑气诀·肆
A17: 11024 | B17: 13002 | C17: 140 | D17: 326 | E17: 749 | F17: 天罡剑气诀 | G17: 吸收自身灵气凝聚{0}柄大剑，大剑旋转快速穿透敌人对敌人照成{1}%伤害 敌人如果在流血或放血状态，对敌人造成的伤害+{2}% 重伤敌人后，如果目标没在放血状态，直接放血且不消耗流血层数 | H17: 1 | I17: icon_s1102 | J17: S1102 | K17: 1102 | L17: 1102_timeline_TD | M17: 1 | N17: 1 | O17: 5 | P17: 6;90;15 | Q17: 2 | R17: 101 | S17: 20 | T17: 722 | W17: 6 | X17: 90 | Y17: 15 | AD17: =CONCATENATE("生命+",S17,"%") -> 生命+20% | AE17: 天罡剑气诀·伍
A18: 11025 | B18: 13002 | C18: 150 | D18: 327 | E18: 750 | F18: 天罡剑气诀 | G18: 吸收自身灵气凝聚{0}柄大剑，大剑旋转快速穿透敌人对敌人照成{1}%伤害 敌人如果在流血或放血状态，对敌人造成的伤害+{2}% 重伤敌人后，如果目标没在放血状态，直接放血且不消耗流血层数 全盛状态，剑的体型变大，对拼强度+{3}%，伤害提升{4}% | H18: 1 | I18: icon_s1102 | J18: S1102 | K18: 1102 | L18: 1102_timeline_TD | M18: 1 | N18: 1 | O18: 6 | P18: 6;90;15;100;30 | Q18: 2 | T18: 722 | W18: 6 | X18: 90 | Y18: 15 | Z18: 100 | AA18: 30 | AD18: 对拼强度和伤害提升 | AE18: 天罡剑气诀·陆
A20: =K20*10+O20-1 -> 11030 | B20: =B13+1 -> 13003 | C20: 100 | D20: =D13+6 -> 328 | E20: =E13+6 -> 751 | F20: 血刃金煌功 | G20: 向前方挥动{0}次，每次挥动形成一道血刃刀气，对敌人{1}造成伤害，并有{2}%概率对敌人造成流血。 | H20: 1 | I20: =CONCATENATE("icon_s",K20) -> icon_s1103 | J20: =CONCATENATE("S",K20) -> S1103 | K20: =K13+1 -> 1103 | L20: 1103_timeline_TD | M20: 1 | N20: 1 | O20: 1 | P20: =_xlfn.TEXTJOIN(";",1,W20:AC20) -> 6;60;15 | Q20: 2 | T20: 722 | W20: 6 | X20: 60 | Y20: 15 | AE20: 血刃金煌功·壹
A21: =K21*10+O21-1 -> 11031 | B21: =B14+1 -> 13003 | C21: 110 | D21: =D14+6 -> 329 | E21: 752 | F21: 血刃金煌功 | G21: 向前方挥动{0}次，每次挥动形成一道血刃刀气，对敌人{1}造成伤害，并有{2}%概率对敌人造成流血。 刀气命中目标后，恢复本次伤害{3}%的生命。 | H21: 1 | I21: icon_s1103 | J21: =CONCATENATE("S",K21) -> S1103 | K21: =K14+1 -> 1103 | L21: 1103_timeline_TD | M21: 1 | N21: 1 | O21: 2 | P21: =_xlfn.TEXTJOIN(";",1,W21:AC21) -> 6;60;15;20 | Q21: 2 | T21: 722 | W21: 6 | X21: 60 | Y21: 15 | Z21: 20 | AD21: 刀气命中回血 | AE21: 血刃金煌功·贰
A22: 11032 | B22: 13003 | C22: 120 | D22: 330 | E22: 753 | F22: 血刃金煌功 | G22: 向前方挥动{0}次，每次挥动形成一道血刃刀气，对敌人{1}造成伤害，并有{2}%概率对敌人造成流血。 刀气命中目标后，恢复本次伤害{3}%的生命。 | H22: 1 | I22: icon_s1103 | J22: S1103 | K22: 1103 | L22: 1103_timeline_TD | M22: 1 | N22: 1 | O22: 3 | P22: 6;60;15;20 | Q22: 2 | R22: 102 | S22: 10 | T22: 722 | W22: 6 | X22: 60 | Y22: 15 | Z22: 20 | AD22: =CONCATENATE("攻击+",S22,"%") -> 攻击+10% | AE22: 血刃金煌功·叁
A23: 11033 | B23: 13003 | C23: 130 | D23: 331 | E23: 754 | F23: 血刃金煌功 | G23: 向前方挥动{0}次，每次挥动形成一道血刃刀气，对敌人{1}造成伤害，并有{2}%概率对敌人造成流血。 刀气命中目标后，恢复本次伤害{3}%的生命。 | H23: 1 | I23: icon_s1103 | J23: S1103 | K23: 1103 | L23: 1103_timeline_TD | M23: 1 | N23: 1 | O23: 4 | P23: 8;60;15;20 | Q23: 2 | T23: 722 | U23: 2 | W23: 8 | X23: 60 | Y23: 15 | Z23: 20 | AD23: =CONCATENATE("刀气+",U23) -> 刀气+2 | AE23: 血刃金煌功·肆
A24: 11034 | B24: 13003 | C24: 140 | D24: 332 | E24: 755 | F24: 血刃金煌功 | G24: 向前方挥动{0}次，每次挥动形成一道血刃刀气，对敌人{1}造成伤害，并有{2}%概率对敌人造成流血。 刀气命中目标后，恢复本次伤害{3}%的生命。 | H24: 1 | I24: icon_s1103 | J24: S1103 | K24: 1103 | L24: 1103_timeline_TD | M24: 1 | N24: 1 | O24: 5 | P24: 8;60;15;20 | Q24: 2 | R24: 102 | S24: 20 | T24: 722 | W24: 8 | X24: 60 | Y24: 15 | Z24: 20 | AD24: =CONCATENATE("攻击+",S24,"%") -> 攻击+20% | AE24: 血刃金煌功·伍
A25: 11035 | B25: 13003 | C25: 150 | D25: 333 | E25: 756 | F25: 血刃金煌功 | G25: 向前方挥动{0}次，每次挥动形成一道血刃刀气，对敌人{1}造成伤害，并有{2}%概率对敌人造成流血。 刀气命中目标后，恢复本次伤害{3}%的生命。 刀气对流血的敌人额外造成{4}%伤害，且再施加1层流血。 | H25: 1 | I25: icon_s1103 | J25: S1103 | K25: 1103 | L25: 1103_timeline_TD | M25: 1 | N25: 1 | O25: 6 | P25: 8;60;15;20;20 | Q25: 2 | T25: 722 | W25: 8 | X25: 60 | Y25: 15 | Z25: 20 | AA25: 20 | AD25: 对流血目标增伤，再次放血 | AE25: 血刃金煌功·陆
A27: =K27*10+O27-1 -> 11040 | B27: =B20+1 -> 13004 | C27: 100 | D27: =D20+6 -> 334 | E27: =E20+6 -> 757 | F27: 飞刃 | G27: 发射{0}枚飞刀，对敌人造成{1}%伤害。 | H27: 1 | I27: =CONCATENATE("icon_s",K27) -> icon_s1104 | J27: =CONCATENATE("S",K27) -> S1104 | K27: =K20+1 -> 1104 | L27: 1104_timeline_TD | M27: 1 | N27: 1 | O27: 1 | P27: =_xlfn.TEXTJOIN(";",1,W27:AC27) -> 6;60 | Q27: 2 | T27: 722 | W27: 6 | X27: 60 | AE27: 飞刃·壹
A28: =K28*10+O28-1 -> 11041 | B28: =B21+1 -> 13004 | C28: 110 | D28: =D21+6 -> 335 | E28: 758 | F28: 飞刃 | G28: 发射{0}枚飞刀，对敌人造成{1}%伤害。 | H28: 1 | I28: icon_s1104 | J28: =CONCATENATE("S",K28) -> S1104 | K28: =K21+1 -> 1104 | L28: 1104_timeline_TD | M28: 1 | N28: 1 | O28: 2 | P28: =_xlfn.TEXTJOIN(";",1,W28:AC28) -> 6;60 | Q28: 2 | R28: 101;102;103 | S28: 2 | T28: 722 | W28: 6 | X28: 60 | AD28: =CONCATENATE("生命、攻击、防御+",S28,"%") -> 生命、攻击、防御+2% | AE28: 飞刃·贰
A29: 11042 | B29: 13004 | C29: 120 | D29: 336 | E29: 759 | F29: 飞刃 | G29: 发射{0}枚飞刀，对敌人造成{1}%伤害。 | H29: 1 | I29: icon_s1104 | J29: S1104 | K29: 1104 | L29: 1104_timeline_TD | M29: 1 | N29: 1 | O29: 3 | P29: 8;60 | Q29: 2 | T29: 722 | U29: 2 | W29: 8 | X29: 60 | AD29: =CONCATENATE("飞刀数量+",U29) -> 飞刀数量+2 | AE29: 飞刃·叁
A30: 11043 | B30: 13004 | C30: 130 | D30: 337 | E30: 760 | F30: 飞刃 | G30: 发射{0}枚飞刀，对敌人造成{1}%伤害。 | H30: 1 | I30: icon_s1104 | J30: S1104 | K30: 1104 | L30: 1104_timeline_TD | M30: 1 | N30: 1 | O30: 4 | P30: 8;60 | Q30: 2 | R30: 101;102;103 | S30: 3.5 | T30: 722 | W30: 8 | X30: 60 | AD30: =CONCATENATE("生命、攻击、防御+",S30,"%") -> 生命、攻击、防御+3.5% | AE30: 飞刃·肆
A31: 11044 | B31: 13004 | C31: 140 | D31: 338 | E31: 761 | F31: 飞刃 | G31: 发射{0}枚飞刀，对敌人造成{1}%伤害。 | H31: 1 | I31: icon_s1104 | J31: S1104 | K31: 1104 | L31: 1104_timeline_TD | M31: 1 | N31: 1 | O31: 5 | P31: 10;60 | Q31: 2 | T31: 722 | U31: 2 | W31: 10 | X31: 60 | AD31: =CONCATENATE("飞刀数量+",U31) -> 飞刀数量+2 | AE31: 飞刃·伍
A32: 11045 | B32: 13004 | C32: 150 | D32: 339 | E32: 762 | F32: 飞刃 | G32: 发射{0}枚飞刀，对敌人造成{1}%伤害。 | H32: 1 | I32: icon_s1104 | J32: S1104 | K32: 1104 | L32: 1104_timeline_TD | M32: 1 | N32: 1 | O32: 6 | P32: 10;60 | Q32: 2 | R32: 101;102;103 | S32: 5 | T32: 722 | W32: 10 | X32: 60 | AD32: 生命、攻击、防御+5% | AE32: 飞刃·陆
A34: =K34*10+O34-1 -> 11050 | B34: =B27+1 -> 13005 | C34: 100 | D34: =D27+6 -> 340 | E34: =E27+6 -> 763 | F34: 金针 | G34: 手中快速发射{0}%枚金针，对敌人造成{1}%伤害，并有{2}%概率施加1层流血。 | H34: 1 | I34: =CONCATENATE("icon_s",K34) -> icon_s1105 | J34: =CONCATENATE("S",K34) -> S1105 | K34: =K27+1 -> 1105 | L34: 1105_timeline_TD | M34: 1 | N34: 1 | O34: 1 | P34: =_xlfn.TEXTJOIN(";",1,W34:AC34) -> 3;120;30 | Q34: 2 | T34: 722 | W34: 3 | X34: 120 | Y34: 30 | AE34: 金针·壹
A35: =K35*10+O35-1 -> 11051 | B35: =B28+1 -> 13005 | C35: 110 | D35: =D28+6 -> 341 | E35: 764 | F35: 金针 | G35: 手中快速发射{0}%枚金针，对敌人造成{1}%伤害，并有{2}%概率施加1层流血。 | H35: 1 | I35: icon_s1105 | J35: =CONCATENATE("S",K35) -> S1105 | K35: =K28+1 -> 1105 | L35: 1105_timeline_TD | M35: 1 | N35: 1 | O35: 2 | P35: =_xlfn.TEXTJOIN(";",1,W35:AC35) -> 3;120;30 | Q35: 2 | R35: 101;102;103 | S35: 2 | T35: 722 | W35: 3 | X35: 120 | Y35: 30 | AD35: =CONCATENATE("生命、攻击、防御+",S35,"%") -> 生命、攻击、防御+2% | AE35: 金针·贰
A36: 11052 | B36: 13005 | C36: 120 | D36: 342 | E36: 765 | F36: 金针 | G36: 手中快速发射{0}%枚金针，对敌人造成{1}%伤害，并有{2}%概率施加1层流血。 | H36: 1 | I36: icon_s1105 | J36: S1105 | K36: 1105 | L36: 1105_timeline_TD | M36: 1 | N36: 1 | O36: 3 | P36: 4;120;30 | Q36: 2 | T36: 722 | U36: 1 | W36: 4 | X36: 120 | Y36: 30 | AD36: =CONCATENATE("金针数量+",U36) -> 金针数量+1 | AE36: 金针·叁
A37: 11053 | B37: 13005 | C37: 130 | D37: 343 | E37: 766 | F37: 金针 | G37: 手中快速发射{0}%枚金针，对敌人造成{1}%伤害，并有{2}%概率施加1层流血。 | H37: 1 | I37: icon_s1105 | J37: S1105 | K37: 1105 | L37: 1105_timeline_TD | M37: 1 | N37: 1 | O37: 4 | P37: 4;120;30 | Q37: 2 | R37: 101;102;103 | S37: 3.5 | T37: 722 | W37: 4 | X37: 120 | Y37: 30 | AD37: =CONCATENATE("生命、攻击、防御+",S37,"%") -> 生命、攻击、防御+3.5% | AE37: 金针·肆
A38: 11054 | B38: 13005 | C38: 140 | D38: 344 | E38: 767 | F38: 金针 | G38: 手中快速发射{0}%枚金针，对敌人造成{1}%伤害，并有{2}%概率施加1层流血。 | H38: 1 | I38: icon_s1105 | J38: S1105 | K38: 1105 | L38: 1105_timeline_TD | M38: 1 | N38: 1 | O38: 5 | P38: 5;120;30 | Q38: 2 | T38: 722 | U38: 1 | W38: 5 | X38: 120 | Y38: 30 | AD38: =CONCATENATE("金针数量+",U38) -> 金针数量+1 | AE38: 金针·伍
A39: 11055 | B39: 13005 | C39: 150 | D39: 345 | E39: 768 | F39: 金针 | G39: 手中快速发射{0}%枚金针，对敌人造成{1}%伤害，并有{2}%概率施加1层流血。 | H39: 1 | I39: icon_s1105 | J39: S1105 | K39: 1105 | L39: 1105_timeline_TD | M39: 1 | N39: 1 | O39: 6 | P39: 5;120;30 | Q39: 2 | R39: 101;102;103 | S39: 5 | T39: 722 | W39: 5 | X39: 120 | Y39: 30 | AD39: =CONCATENATE("生命、攻击、防御+",S39,"%") -> 生命、攻击、防御+5% | AE39: 金针·陆
A41: =K41*10+O41-1 -> 12010 | B41: =B34+1 -> 13006 | C41: 100 | D41: =D34+6 -> 346 | E41: =E34+6 -> 769 | F41: 碧落幽冥劲 | G41: 发出{0}道寒气冰锥，对敌人照成{1}%伤害，每到冰锥有{2}%概率对敌人施加1层寒气 | H41: 2 | I41: =CONCATENATE("icon_s",K41) -> icon_s1201 | J41: =CONCATENATE("S",K41) -> S1201 | K41: 1201 | L41: 1201_timeline_TD | M41: 1 | N41: 1 | O41: 1 | P41: =_xlfn.TEXTJOIN(";",1,W41:AC41) -> 3;120;30 | Q41: 2 | T41: 722 | W41: 3 | X41: 120 | Y41: 30 | AE41: 碧落幽冥劲·壹
A42: =K42*10+O42-1 -> 12011 | B42: =B35+1 -> 13006 | C42: 110 | D42: =D35+6 -> 347 | E42: 770 | F42: 碧落幽冥劲 | G42: 发出{0}道寒气冰锥，对敌人照成{1}%伤害，每到冰锥有{2}%概率对敌人施加1层寒气 | H42: 2 | I42: icon_s1201 | J42: =CONCATENATE("S",K42) -> S1201 | K42: 1201 | L42: 1201_timeline_TD | M42: 1 | N42: 1 | O42: 2 | P42: =_xlfn.TEXTJOIN(";",1,W42:AC42) -> 4;120;30 | Q42: 2 | T42: 722 | U42: 1 | W42: 4 | X42: 120 | Y42: 30 | AD42: =CONCATENATE("冰锥数量+",U42) -> 冰锥数量+1 | AE42: 碧落幽冥劲·贰
A43: 12012 | B43: 13006 | C43: 120 | D43: 348 | E43: 771 | F43: 碧落幽冥劲 | G43: 发出{0}道寒气冰锥，对敌人照成{1}%伤害，每到冰锥有{2}%概率对敌人施加1层寒气 | H43: 2 | I43: icon_s1201 | J43: S1201 | K43: 1201 | L43: 1201_timeline_TD | M43: 1 | N43: 1 | O43: 3 | P43: 4;120;30 | Q43: 2 | R43: 101 | S43: 10 | T43: 722 | W43: 4 | X43: 120 | Y43: 30 | AD43: =CONCATENATE("生命+",S43,"%") -> 生命+10% | AE43: 碧落幽冥劲·叁
A44: 12013 | B44: 13006 | C44: 130 | D44: 349 | E44: 772 | F44: 碧落幽冥劲 | G44: 发出{0}道寒气冰锥，对敌人照成{1}%伤害，每到冰锥有{2}%概率对敌人施加1层寒气 | H44: 2 | I44: icon_s1201 | J44: S1201 | K44: 1201 | L44: 1201_timeline_TD | M44: 1 | N44: 1 | O44: 4 | P44: 5;120;30 | Q44: 2 | T44: 722 | U44: 1 | W44: 5 | X44: 120 | Y44: 30 | AD44: =CONCATENATE("冰锥数量+",U44) -> 冰锥数量+1 | AE44: 碧落幽冥劲·肆
A45: 12014 | B45: 13006 | C45: 140 | D45: 350 | E45: 773 | F45: 碧落幽冥劲 | G45: 发出{0}道寒气冰锥，对敌人照成{1}%伤害，每到冰锥有{2}%概率对敌人施加1层寒气 | H45: 2 | I45: icon_s1201 | J45: S1201 | K45: 1201 | L45: 1201_timeline_TD | M45: 1 | N45: 1 | O45: 5 | P45: 5;120;30 | Q45: 2 | R45: 101 | S45: 20 | T45: 722 | W45: 5 | X45: 120 | Y45: 30 | AD45: =CONCATENATE("生命+",S45,"%") -> 生命+20% | AE45: 碧落幽冥劲·伍
A46: 12015 | B46: 13006 | C46: 150 | D46: 351 | E46: 774 | F46: 碧落幽冥劲 | G46: 发出{0}道寒气冰锥，对敌人照成{1}%伤害，每到冰锥有{2}%概率对敌人施加1层寒气 | H46: 2 | I46: icon_s1201 | J46: S1201 | K46: 1201 | L46: 1201_timeline_TD | M46: 1 | N46: 1 | O46: 6 | P46: 6;120;30 | Q46: 2 | T46: 722 | U46: 1 | W46: 6 | X46: 120 | Y46: 30 | AD46: =CONCATENATE("冰锥数量+",U46) -> 冰锥数量+1 | AE46: 碧落幽冥劲·陆
A48: =K48*10+O48-1 -> 12020 | B48: =B41+1 -> 13007 | C48: 100 | D48: =D41+6 -> 352 | E48: =E41+6 -> 775 | F48: 雾隐千流法 | G48: 身体散发出一团迷雾。从迷雾中飞出{0}个冰球，每个冰球对敌人照成{1}%伤害，并有{2}%概率施加1层寒气 | H48: 2 | I48: =CONCATENATE("icon_s",K48) -> icon_s1202 | J48: =CONCATENATE("S",K48) -> S1202 | K48: =K41+1 -> 1202 | L48: 1202_timeline_TD | M48: 1 | N48: 1 | O48: 1 | P48: =_xlfn.TEXTJOIN(";",1,W48:AC48) -> 3;120;30 | Q48: 2 | T48: 723 | W48: 3 | X48: 120 | Y48: 30 | AE48: 雾隐千流法·壹
A49: =K49*10+O49-1 -> 12021 | B49: =B42+1 -> 13007 | C49: 110 | D49: =D42+6 -> 353 | E49: 776 | F49: 雾隐千流法 | G49: 身体散发出一团迷雾。从迷雾中飞出{0}个冰球，每个冰球对敌人照成{1}%伤害，并有{2}%概率施加1层寒气 | H49: 2 | I49: icon_s1202 | J49: =CONCATENATE("S",K49) -> S1202 | K49: =K42+1 -> 1202 | L49: 1202_timeline_TD | M49: 1 | N49: 1 | O49: 2 | P49: =_xlfn.TEXTJOIN(";",1,W49:AC49) -> 4;120;30 | Q49: 2 | T49: 723 | U49: 1 | W49: 4 | X49: 120 | Y49: 30 | AD49: =CONCATENATE("冰球数量+",U49) -> 冰球数量+1 | AE49: 雾隐千流法·贰
A50: 12022 | B50: 13007 | C50: 120 | D50: 354 | E50: 777 | F50: 雾隐千流法 | G50: 身体散发出一团迷雾。从迷雾中飞出{0}个冰球，每个冰球对敌人照成{1}%伤害，并有{2}%概率施加1层寒气 | H50: 2 | I50: icon_s1202 | J50: S1202 | K50: 1202 | L50: 1202_timeline_TD | M50: 1 | N50: 1 | O50: 3 | P50: 4;120;30 | Q50: 2 | R50: 102 | S50: 10 | T50: 723 | W50: 4 | X50: 120 | Y50: 30 | AD50: =CONCATENATE("攻击+",S50,"%") -> 攻击+10% | AE50: 雾隐千流法·叁
A51: 12023 | B51: 13007 | C51: 130 | D51: 355 | E51: 778 | F51: 雾隐千流法 | G51: 身体散发出一团迷雾。从迷雾中飞出{0}个冰球，每个冰球对敌人照成{1}%伤害，并有{2}%概率施加1层寒气 | H51: 2 | I51: icon_s1202 | J51: S1202 | K51: 1202 | L51: 1202_timeline_TD | M51: 1 | N51: 1 | O51: 4 | P51: 5;120;30 | Q51: 2 | T51: 723 | U51: 1 | W51: 5 | X51: 120 | Y51: 30 | AD51: =CONCATENATE("冰球数量+",U51) -> 冰球数量+1 | AE51: 雾隐千流法·肆
A52: 12024 | B52: 13007 | C52: 140 | D52: 356 | E52: 779 | F52: 雾隐千流法 | G52: 身体散发出一团迷雾。从迷雾中飞出{0}个冰球，每个冰球对敌人照成{1}%伤害，并有{2}%概率施加1层寒气 | H52: 2 | I52: icon_s1202 | J52: S1202 | K52: 1202 | L52: 1202_timeline_TD | M52: 1 | N52: 1 | O52: 5 | P52: 5;120;30 | Q52: 2 | R52: 102 | S52: 20 | T52: 723 | W52: 5 | X52: 120 | Y52: 30 | AD52: =CONCATENATE("攻击+",S52,"%") -> 攻击+20% | AE52: 雾隐千流法·伍
A53: 12025 | B53: 13007 | C53: 150 | D53: 357 | E53: 780 | F53: 雾隐千流法 | G53: 身体散发出一团迷雾。从迷雾中飞出{0}个冰球，每个冰球对敌人照成{1}%伤害，并有{2}%概率施加1层寒气 | H53: 2 | I53: icon_s1202 | J53: S1202 | K53: 1202 | L53: 1202_timeline_TD | M53: 1 | N53: 1 | O53: 6 | P53: 6;120;30 | Q53: 2 | T53: 723 | U53: 1 | W53: 6 | X53: 120 | Y53: 30 | AD53: =CONCATENATE("冰球数量+",U53) -> 冰球数量+1 | AE53: 雾隐千流法·陆
B55: =B48+1 -> 13008 | C55: 100 | D55: =D48+6 -> 358 | E55: =E48+6 -> 781 | G55: 占位 | H55: 2 | I55: =CONCATENATE("icon_s",K55) -> icon_s1203 | J55: =CONCATENATE("S",K55) -> S1203 | K55: =K48+1 -> 1203 | L55: bingqiu_timeline_TD | M55: 1 | N55: 1 | O55: 1 | P55: =_xlfn.TEXTJOIN(";",1,W55:AC55) -> 3;120;30 | Q55: 2 | T55: 723 | W55: 3 | X55: 120 | Y55: 30 | AE55: =IF(F55="","",CONCATENATE(F55,"·",CHOOSE(O55,"壹","贰","叁","肆","伍","陆"))) -> 
B56: =B49+1 -> 13008 | C56: 110 | D56: =D49+6 -> 359 | E56: 782 | G56: 占位 | H56: 2 | I56: icon_s1203 | J56: =CONCATENATE("S",K56) -> S1203 | K56: =K49+1 -> 1203 | L56: bingqiu_timeline_TD | M56: 1 | N56: 1 | O56: 2 | P56: =_xlfn.TEXTJOIN(";",1,W56:AC56) -> 4;120;30 | Q56: 2 | T56: 723 | U56: 1 | W56: 4 | X56: 120 | Y56: 30 | AD56: =CONCATENATE("冰球数量+",U56) -> 冰球数量+1
B57: 13008 | C57: 120 | D57: =D50+6 -> 360 | E57: 783 | G57: 占位 | H57: 2 | I57: icon_s1203 | J57: S1203 | K57: 1203 | L57: bingqiu_timeline_TD | M57: 1 | N57: 1 | O57: 3 | P57: 4;120;30 | Q57: 2 | R57: 102 | S57: 10 | T57: 723 | W57: 4 | X57: 120 | Y57: 30 | AD57: =CONCATENATE("攻击+",S57,"%") -> 攻击+10%
B58: 13008 | C58: 130 | D58: =D51+6 -> 361 | E58: 784 | G58: 占位 | H58: 2 | I58: icon_s1203 | J58: S1203 | K58: 1203 | L58: bingqiu_timeline_TD | M58: 1 | N58: 1 | O58: 4 | P58: 5;120;30 | Q58: 2 | T58: 723 | U58: 1 | W58: 5 | X58: 120 | Y58: 30 | AD58: =CONCATENATE("冰球数量+",U58) -> 冰球数量+1
B59: 13008 | C59: 140 | D59: =D52+6 -> 362 | E59: 785 | G59: 占位 | H59: 2 | I59: icon_s1203 | J59: S1203 | K59: 1203 | L59: bingqiu_timeline_TD | M59: 1 | N59: 1 | O59: 5 | P59: 5;120;30 | Q59: 2 | R59: 102 | S59: 20 | T59: 723 | W59: 5 | X59: 120 | Y59: 30 | AD59: =CONCATENATE("攻击+",S59,"%") -> 攻击+20%
B60: 13008 | C60: 150 | D60: =D53+6 -> 363 | E60: 786 | G60: 占位 | H60: 2 | I60: icon_s1203 | J60: S1203 | K60: 1203 | L60: bingqiu_timeline_TD | M60: 1 | N60: 1 | O60: 6 | P60: 6;120;30 | Q60: 2 | T60: 723 | U60: 1 | W60: 6 | X60: 120 | Y60: 30 | AD60: =CONCATENATE("冰球数量+",U60) -> 冰球数量+1
I61: =CONCATENATE("icon_s",K61) -> icon_s
A62: =K62*10+O62-1 -> 12040 | B62: =B55+1 -> 13009 | C62: 100 | D62: =D48+6 -> 358 | E62: 781 | F62: 水球 | G62: 发射{0}枚水波，对敌人造成{1}%伤害。 | H62: 2 | I62: icon_s1204 | J62: =CONCATENATE("S",K62) -> S1204 | K62: 1204 | L62: 1204_timeline_TD | M62: 1 | N62: 1 | O62: 1 | P62: =_xlfn.TEXTJOIN(";",1,W62:AC62) -> 6;60 | Q62: 2 | T62: 722 | W62: 6 | X62: 60 | AE62: 水球·壹
A63: =K63*10+O63-1 -> 12041 | B63: =B56+1 -> 13009 | C63: 110 | D63: 359 | E63: 782 | F63: 水球 | G63: 发射{0}枚水波，对敌人造成{1}%伤害。 | H63: 2 | I63: icon_s1204 | J63: =CONCATENATE("S",K63) -> S1204 | K63: 1204 | L63: 1204_timeline_TD | M63: 1 | N63: 1 | O63: 2 | P63: =_xlfn.TEXTJOIN(";",1,W63:AC63) -> 6;60 | Q63: 2 | R63: 101;102;103 | S63: 2 | T63: 722 | W63: 6 | X63: 60 | AD63: =CONCATENATE("生命、攻击、防御+",S63,"%") -> 生命、攻击、防御+2% | AE63: 水球·贰
A64: 12042 | B64: 13009 | C64: 120 | D64: 360 | E64: 783 | F64: 水球 | G64: 发射{0}枚水波，对敌人造成{1}%伤害。 | H64: 2 | I64: icon_s1204 | J64: S1204 | K64: 1204 | L64: 1204_timeline_TD | M64: 1 | N64: 1 | O64: 3 | P64: 8;60 | Q64: 2 | T64: 722 | U64: 2 | W64: 8 | X64: 60 | AD64: =CONCATENATE("水波数量+",U64) -> 水波数量+2 | AE64: 水球·叁
A65: 12043 | B65: 13009 | C65: 130 | D65: 361 | E65: 784 | F65: 水球 | G65: 发射{0}枚水波，对敌人造成{1}%伤害。 | H65: 2 | I65: icon_s1204 | J65: S1204 | K65: 1204 | L65: 1204_timeline_TD | M65: 1 | N65: 1 | O65: 4 | P65: 8;60 | Q65: 2 | R65: 101;102;103 | S65: 3.5 | T65: 722 | W65: 8 | X65: 60 | AD65: =CONCATENATE("生命、攻击、防御+",S65,"%") -> 生命、攻击、防御+3.5% | AE65: 水球·肆
A66: 12044 | B66: 13009 | C66: 140 | D66: 362 | E66: 785 | F66: 水球 | G66: 发射{0}枚水波，对敌人造成{1}%伤害。 | H66: 2 | I66: icon_s1204 | J66: S1204 | K66: 1204 | L66: 1204_timeline_TD | M66: 1 | N66: 1 | O66: 5 | P66: 10;60 | Q66: 2 | T66: 722 | U66: 2 | W66: 10 | X66: 60 | AD66: =CONCATENATE("水波数量+",U66) -> 水波数量+2 | AE66: 水球·伍
A67: 12045 | B67: 13009 | C67: 150 | D67: 363 | E67: 786 | F67: 水球 | G67: 发射{0}枚水波，对敌人造成{1}%伤害。 | H67: 2 | I67: =CONCATENATE("icon_s",K67) -> icon_s1204 | J67: S1204 | K67: 1204 | L67: 1204_timeline_TD | M67: 1 | N67: 1 | O67: 6 | P67: 10;60 | Q67: 2 | R67: 101;102;103 | S67: 5 | T67: 722 | W67: 10 | X67: 60 | AD67: =CONCATENATE("生命、攻击、防御+",S67,"%") -> 生命、攻击、防御+5% | AE67: 水球·陆
I68: icon_s
A69: =K69*10+O69-1 -> 12050 | B69: =B62+1 -> 13010 | C69: 100 | D69: =D62+6 -> 364 | E69: =E62+6 -> 787 | F69: 冰刀 | G69: 发射{0}枚冰刀，对敌人造成{1}%伤害。 | H69: 2 | I69: icon_s1205 | J69: =CONCATENATE("S",K69) -> S1205 | K69: 1205 | L69: 1205_timeline_TD | M69: 1 | N69: 1 | O69: 1 | P69: =_xlfn.TEXTJOIN(";",1,W69:AC69) -> 6;60 | Q69: 2 | T69: 722 | W69: 6 | X69: 60 | AE69: 冰刀·壹
A70: =K70*10+O70-1 -> 12051 | B70: =B63+1 -> 13010 | C70: 110 | D70: =D63+6 -> 365 | E70: 788 | F70: 冰刀 | G70: 发射{0}枚冰刀，对敌人造成{1}%伤害。 | H70: 2 | I70: icon_s1205 | J70: =CONCATENATE("S",K70) -> S1205 | K70: 1205 | L70: 1205_timeline_TD | M70: 1 | N70: 1 | O70: 2 | P70: =_xlfn.TEXTJOIN(";",1,W70:AC70) -> 6;60 | Q70: 2 | R70: 101;102;103 | S70: 2 | T70: 722 | W70: 6 | X70: 60 | AD70: =CONCATENATE("生命、攻击、防御+",S70,"%") -> 生命、攻击、防御+2% | AE70: 冰刀·贰
A71: 12052 | B71: 13010 | C71: 120 | D71: 366 | E71: 789 | F71: 冰刀 | G71: 发射{0}枚冰刀，对敌人造成{1}%伤害。 | H71: 2 | I71: icon_s1205 | J71: S1205 | K71: 1205 | L71: 1205_timeline_TD | M71: 1 | N71: 1 | O71: 3 | P71: 8;60 | Q71: 2 | T71: 722 | U71: 2 | W71: 8 | X71: 60 | AD71: =CONCATENATE("冰刀数量+",U71) -> 冰刀数量+2 | AE71: 冰刀·叁
A72: 12053 | B72: 13010 | C72: 130 | D72: 367 | E72: 790 | F72: 冰刀 | G72: 发射{0}枚冰刀，对敌人造成{1}%伤害。 | H72: 2 | I72: icon_s1205 | J72: S1205 | K72: 1205 | L72: 1205_timeline_TD | M72: 1 | N72: 1 | O72: 4 | P72: 8;60 | Q72: 2 | R72: 101;102;103 | S72: 3.5 | T72: 722 | W72: 8 | X72: 60 | AD72: =CONCATENATE("生命、攻击、防御+",S72,"%") -> 生命、攻击、防御+3.5% | AE72: 冰刀·肆
A73: 12054 | B73: 13010 | C73: 140 | D73: 368 | E73: 791 | F73: 冰刀 | G73: 发射{0}枚冰刀，对敌人造成{1}%伤害。 | H73: 2 | I73: icon_s1205 | J73: S1205 | K73: 1205 | L73: 1205_timeline_TD | M73: 1 | N73: 1 | O73: 5 | P73: 10;60 | Q73: 2 | T73: 722 | U73: 2 | W73: 10 | X73: 60 | AD73: =CONCATENATE("冰刀数量+",U73) -> 冰刀数量+2 | AE73: 冰刀·伍
A74: 12055 | B74: 13010 | C74: 150 | D74: 369 | E74: 792 | F74: 冰刀 | G74: 发射{0}枚冰刀，对敌人造成{1}%伤害。 | H74: 2 | I74: icon_s1205 | J74: S1205 | K74: 1205 | L74: 1205_timeline_TD | M74: 1 | N74: 1 | O74: 6 | P74: 10;60 | Q74: 2 | R74: 101;102;103 | S74: 5 | T74: 722 | W74: 10 | X74: 60 | AD74: =CONCATENATE("生命、攻击、防御+",S74,"%") -> 生命、攻击、防御+5% | AE74: 冰刀·陆
I75: icon_s
A76: =K76*10+O76-1 -> 13010 | B76: =B69+1 -> 13011 | C76: 100 | D76: =D69+6 -> 370 | E76: =E69+6 -> 793 | F76: 瘴影千丝术 | G76: 发出{0}条细细的毒针，每颗针对敌人照成{1}%金系伤害，每颗针有{2}%概率施加1层毒 | H76: 4 | I76: icon_s1301 | J76: =CONCATENATE("S",K76) -> S1301 | K76: 1301 | L76: 1301_timeline_TD | M76: 1 | N76: 1 | O76: 1 | P76: =_xlfn.TEXTJOIN(";",1,W76:AC76) -> 3;120;30 | Q76: 2 | T76: 722 | W76: 3 | X76: 120 | Y76: 30 | AE76: 瘴影千丝术·壹
A77: =K77*10+O77-1 -> 13011 | B77: =B70+1 -> 13011 | C77: 110 | D77: =D70+6 -> 371 | E77: 794 | F77: 瘴影千丝术 | G77: 发出{0}条细细的毒针，每颗针对敌人照成{1}%金系伤害，每颗针有{2}%概率施加1层毒 | H77: 4 | I77: icon_s1301 | J77: =CONCATENATE("S",K77) -> S1301 | K77: 1301 | L77: 1301_timeline_TD | M77: 1 | N77: 1 | O77: 2 | P77: =_xlfn.TEXTJOIN(";",1,W77:AC77) -> 4;120;30 | Q77: 2 | T77: 722 | U77: 1 | W77: 4 | X77: 120 | Y77: 30 | AD77: =CONCATENATE("毒针数量+",U77) -> 毒针数量+1 | AE77: 瘴影千丝术·贰
A78: 13012 | B78: 13011 | C78: 120 | D78: 372 | E78: 795 | F78: 瘴影千丝术 | G78: 发出{0}条细细的毒针，每颗针对敌人照成{1}%金系伤害，每颗针有{2}%概率施加1层毒 | H78: 4 | I78: icon_s1301 | J78: S1301 | K78: 1301 | L78: 1301_timeline_TD | M78: 1 | N78: 1 | O78: 3 | P78: 4;120;30 | Q78: 2 | R78: 101 | S78: 10 | T78: 722 | W78: 4 | X78: 120 | Y78: 30 | AD78: =CONCATENATE("生命+",S78,"%") -> 生命+10% | AE78: =IF(F78="","",CONCATENATE(F78,"·",CHOOSE(O78,"壹","贰","叁","肆","伍","陆"))) -> 瘴影千丝术·叁
A79: 13013 | B79: 13011 | C79: 130 | D79: 373 | E79: 796 | F79: 瘴影千丝术 | G79: 发出{0}条细细的毒针，每颗针对敌人照成{1}%金系伤害，每颗针有{2}%概率施加1层毒 | H79: 4 | I79: icon_s1301 | J79: S1301 | K79: 1301 | L79: 1301_timeline_TD | M79: 1 | N79: 1 | O79: 4 | P79: 5;120;30 | Q79: 2 | T79: 722 | U79: 1 | W79: 5 | X79: 120 | Y79: 30 | AD79: =CONCATENATE("毒针数量+",U79) -> 毒针数量+1 | AE79: 瘴影千丝术·肆
A80: 13014 | B80: 13011 | C80: 140 | D80: 374 | E80: 797 | F80: 瘴影千丝术 | G80: 发出{0}条细细的毒针，每颗针对敌人照成{1}%金系伤害，每颗针有{2}%概率施加1层毒 | H80: 4 | I80: icon_s1301 | J80: S1301 | K80: 1301 | L80: 1301_timeline_TD | M80: 1 | N80: 1 | O80: 5 | P80: 5;120;30 | Q80: 2 | R80: 101 | S80: 20 | T80: 722 | W80: 5 | X80: 120 | Y80: 30 | AD80: =CONCATENATE("生命+",S80,"%") -> 生命+20% | AE80: 瘴影千丝术·伍
A81: 13015 | B81: 13011 | C81: 150 | D81: 375 | E81: 798 | F81: 瘴影千丝术 | G81: 发出{0}条细细的毒针，每颗针对敌人照成{1}%金系伤害，每颗针有{2}%概率施加1层毒 | H81: 4 | I81: icon_s1301 | J81: S1301 | K81: 1301 | L81: 1301_timeline_TD | M81: 1 | N81: 1 | O81: 6 | P81: 6;120;30 | Q81: 2 | T81: 722 | U81: 1 | W81: 6 | X81: 120 | Y81: 30 | AD81: =CONCATENATE("毒针数量+",U81) -> 毒针数量+1 | AE81: 瘴影千丝术·陆
I82: icon_s
A83: =K83*10+O83-1 -> 13020 | B83: =B76+1 -> 13012 | C83: 100 | D83: =D76+6 -> 376 | E83: =E76+6 -> 799 | F83: 蚀骨腐血掌 | G83: 快手释放{0}掌，对敌人造成{1}%伤害，并有{2}%几率对敌人施加1层毒，如果敌人毒超过{3}层，则每层毒对敌人的伤害提升{4}%，并有{5}%几率施加一层噬魂。 | H83: 4 | I83: icon_s1302 | J83: =CONCATENATE("S",K83) -> S1302 | K83: 1302 | L83: 1302_timeline_TD | M83: 1 | N83: 1 | O83: 1 | P83: =_xlfn.TEXTJOIN(";",1,W83:AC83) -> 3;90;45;5;6;100 | Q83: 2 | T83: 723 | W83: 3 | X83: 90 | Y83: 45 | Z83: 5 | AA83: 6 | AB83: 100 | AE83: 蚀骨腐血掌·壹
A84: =K84*10+O84-1 -> 13021 | B84: =B77+1 -> 13012 | C84: 110 | D84: =D77+6 -> 377 | E84: 800 | F84: 蚀骨腐血掌 | G84: 快手释放{0}掌，对敌人造成{1}%伤害，并有{2}%几率对敌人施加1层毒，如果敌人毒超过{3}层，则每层毒对敌人的伤害提升{4}%，并有{5}%几率施加一层噬魂。 | H84: 4 | I84: icon_s1302 | J84: =CONCATENATE("S",K84) -> S1302 | K84: 1302 | L84: 1302_timeline_TD | M84: 1 | N84: 1 | O84: 2 | P84: =_xlfn.TEXTJOIN(";",1,W84:AC84) -> 4;90;45;5;6;100 | Q84: 2 | T84: 723 | U84: 1 | W84: 4 | X84: 90 | Y84: 45 | Z84: 5 | AA84: 6 | AB84: 100 | AD84: =CONCATENATE("手掌数量+",U84) -> 手掌数量+1 | AE84: 蚀骨腐血掌·贰
A85: 13022 | B85: 13012 | C85: 120 | D85: 378 | E85: 801 | F85: 蚀骨腐血掌 | G85: 快手释放{0}掌，对敌人造成{1}%伤害，并有{2}%几率对敌人施加1层毒，如果敌人毒超过{3}层，则每层毒对敌人的伤害提升{4}%，并有{5}%几率施加一层噬魂。 | H85: 4 | I85: icon_s1302 | J85: S1302 | K85: 1302 | L85: 1302_timeline_TD | M85: 1 | N85: 1 | O85: 3 | P85: 4;90;45;5;6;100 | Q85: 2 | R85: 102 | S85: 10 | T85: 723 | W85: 4 | X85: 90 | Y85: 45 | Z85: 5 | AA85: 6 | AB85: 100 | AD85: =CONCATENATE("攻击+",S85,"%") -> 攻击+10% | AE85: 蚀骨腐血掌·叁
A86: 13023 | B86: 13012 | C86: 130 | D86: 379 | E86: 802 | F86: 蚀骨腐血掌 | G86: 快手释放{0}掌，对敌人造成{1}%伤害，并有{2}%几率对敌人施加1层毒，如果敌人毒超过{3}层，则每层毒对敌人的伤害提升{4}%，并有{5}%几率施加一层噬魂。 | H86: 4 | I86: icon_s1302 | J86: S1302 | K86: 1302 | L86: 1302_timeline_TD | M86: 1 | N86: 1 | O86: 4 | P86: 5;90;45;5;6;100 | Q86: 2 | T86: 723 | U86: 2 | W86: 5 | X86: 90 | Y86: 45 | Z86: 5 | AA86: 6 | AB86: 100 | AD86: =CONCATENATE("手掌数量+",U86) -> 手掌数量+2 | AE86: 蚀骨腐血掌·肆
A87: 13024 | B87: 13012 | C87: 140 | D87: 380 | E87: 803 | F87: 蚀骨腐血掌 | G87: 快手释放{0}掌，对敌人造成{1}%伤害，并有{2}%几率对敌人施加1层毒，如果敌人毒超过{3}层，则每层毒对敌人的伤害提升{4}%，并有{5}%几率施加一层噬魂。 | H87: 4 | I87: icon_s1302 | J87: S1302 | K87: 1302 | L87: 1302_timeline_TD | M87: 1 | N87: 1 | O87: 5 | P87: 5;90;45;5;6;100 | Q87: 2 | R87: 102 | S87: 20 | T87: 723 | W87: 5 | X87: 90 | Y87: 45 | Z87: 5 | AA87: 6 | AB87: 100 | AD87: =CONCATENATE("攻击+",S87,"%") -> 攻击+20% | AE87: 蚀骨腐血掌·伍
A88: 13025 | B88: 13012 | C88: 150 | D88: 381 | E88: 804 | F88: 蚀骨腐血掌 | G88: 快手释放{0}掌，对敌人造成{1}%伤害，并有{2}%几率对敌人施加1层毒，如果敌人毒超过{3}层，则每层毒对敌人的伤害提升{4}%，并有{5}%几率施加一层噬魂。 | H88: 4 | I88: icon_s1302 | J88: S1302 | K88: 1302 | L88: 1302_timeline_TD | M88: 1 | N88: 1 | O88: 6 | P88: 6;90;45;5;6;100 | Q88: 2 | T88: 723 | U88: 3 | W88: 6 | X88: 90 | Y88: 45 | Z88: 5 | AA88: 6 | AB88: 100 | AD88: =CONCATENATE("手掌数量+",U88) -> 手掌数量+3 | AE88: 蚀骨腐血掌·陆
I89: icon_s
B90: =B83+1 -> 13013 | C90: 100 | D90: =D83+6 -> 382 | E90: =E83+6 -> 805 | G90: 占位 | H90: 4 | I90: icon_s1303 | J90: =CONCATENATE("S",K90) -> S1303 | K90: 1303 | L90: duzhen_timeline_TD | M90: 1 | N90: 1 | O90: 1 | P90: =_xlfn.TEXTJOIN(";",1,W90:AC90) -> 3;90;45;5;6;100 | Q90: 2 | T90: 723 | W90: 3 | X90: 90 | Y90: 45 | Z90: 5 | AA90: 6 | AB90: 100 | AE90: =IF(F90="","",CONCATENATE(F90,"·",CHOOSE(O90,"壹","贰","叁","肆","伍","陆"))) -> 
B91: =B84+1 -> 13013 | C91: 110 | D91: =D84+6 -> 383 | E91: 806 | G91: 占位 | H91: 4 | I91: icon_s1303 | J91: =CONCATENATE("S",K91) -> S1303 | K91: 1303 | L91: duzhen_timeline_TD | M91: 1 | N91: 1 | O91: 2 | P91: =_xlfn.TEXTJOIN(";",1,W91:AC91) -> 4;90;45;5;6;100 | Q91: 2 | T91: 723 | U91: 1 | W91: 4 | X91: 90 | Y91: 45 | Z91: 5 | AA91: 6 | AB91: 100 | AD91: =CONCATENATE("手掌数量+",U91) -> 手掌数量+1
B92: 13013 | C92: 120 | D92: =D85+6 -> 384 | E92: 807 | G92: 占位 | H92: 4 | I92: icon_s1303 | J92: S1303 | K92: 1303 | L92: duzhen_timeline_TD | M92: 1 | N92: 1 | O92: 3 | P92: 4;90;45;5;6;100 | Q92: 2 | R92: 102 | S92: 10 | T92: 723 | W92: 4 | X92: 90 | Y92: 45 | Z92: 5 | AA92: 6 | AB92: 100 | AD92: =CONCATENATE("攻击+",S92,"%") -> 攻击+10%
B93: 13013 | C93: 130 | D93: =D86+6 -> 385 | E93: 808 | G93: 占位 | H93: 4 | I93: icon_s1303 | J93: S1303 | K93: 1303 | L93: duzhen_timeline_TD | M93: 1 | N93: 1 | O93: 4 | P93: 5;90;45;5;6;100 | Q93: 2 | T93: 723 | U93: 2 | W93: 5 | X93: 90 | Y93: 45 | Z93: 5 | AA93: 6 | AB93: 100 | AD93: =CONCATENATE("手掌数量+",U93) -> 手掌数量+2
B94: 13013 | C94: 140 | D94: =D87+6 -> 386 | E94: 809 | G94: 占位 | H94: 4 | I94: icon_s1303 | J94: S1303 | K94: 1303 | L94: duzhen_timeline_TD | M94: 1 | N94: 1 | O94: 5 | P94: 5;90;45;5;6;100 | Q94: 2 | R94: 102 | S94: 20 | T94: 723 | W94: 5 | X94: 90 | Y94: 45 | Z94: 5 | AA94: 6 | AB94: 100 | AD94: =CONCATENATE("攻击+",S94,"%") -> 攻击+20%
B95: 13013 | C95: 150 | D95: =D88+6 -> 387 | E95: 810 | G95: 占位 | H95: 4 | I95: icon_s1303 | J95: S1303 | K95: 1303 | L95: duzhen_timeline_TD | M95: 1 | N95: 1 | O95: 6 | P95: 6;90;45;5;6;100 | Q95: 2 | T95: 723 | U95: 3 | W95: 6 | X95: 90 | Y95: 45 | Z95: 5 | AA95: 6 | AB95: 100 | AD95: =CONCATENATE("手掌数量+",U95) -> 手掌数量+3
I96: icon_s
A97: =K97*10+O97-1 -> 13040 | B97: =B90+1 -> 13014 | C97: 100 | D97: =D83+6 -> 382 | E97: 805 | F97: 竹刺 | G97: 发射{0}枚竹刺，对敌人造成{1}%伤害。 | H97: 4 | I97: icon_s1304 | J97: =CONCATENATE("S",K97) -> S1304 | K97: 1304 | L97: 1304_timeline_TD | M97: 1 | N97: 1 | O97: 1 | P97: =_xlfn.TEXTJOIN(";",1,W97:AC97) -> 6;60 | Q97: 2 | T97: 722 | W97: 6 | X97: 60 | AE97: 竹刺·壹
A98: =K98*10+O98-1 -> 13041 | B98: =B91+1 -> 13014 | C98: 110 | D98: 383 | E98: 806 | F98: 竹刺 | G98: 发射{0}枚竹刺，对敌人造成{1}%伤害。 | H98: 4 | I98: icon_s1304 | J98: =CONCATENATE("S",K98) -> S1304 | K98: 1304 | L98: 1304_timeline_TD | M98: 1 | N98: 1 | O98: 2 | P98: =_xlfn.TEXTJOIN(";",1,W98:AC98) -> 6;60 | Q98: 2 | R98: 101;102;103 | S98: 2 | T98: 722 | W98: 6 | X98: 60 | AD98: =CONCATENATE("生命、攻击、防御+",S98,"%") -> 生命、攻击、防御+2% | AE98: 竹刺·贰
A99: 13042 | B99: 13014 | C99: 120 | D99: 384 | E99: 807 | F99: 竹刺 | G99: 发射{0}枚竹刺，对敌人造成{1}%伤害。 | H99: 4 | I99: icon_s1304 | J99: S1304 | K99: 1304 | L99: 1304_timeline_TD | M99: 1 | N99: 1 | O99: 3 | P99: 8;60 | Q99: 2 | T99: 722 | U99: 2 | W99: 8 | X99: 60 | AD99: =CONCATENATE("竹刺数量+",U99) -> 竹刺数量+2 | AE99: 竹刺·叁
A100: 13043 | B100: 13014 | C100: 130 | D100: 385 | E100: 808 | F100: 竹刺 | G100: 发射{0}枚竹刺，对敌人造成{1}%伤害。 | H100: 4 | I100: icon_s1304 | J100: S1304 | K100: 1304 | L100: 1304_timeline_TD | M100: 1 | N100: 1 | O100: 4 | P100: 8;60 | Q100: 2 | R100: 101;102;103 | S100: 3.5 | T100: 722 | W100: 8 | X100: 60 | AD100: =CONCATENATE("生命、攻击、防御+",S100,"%") -> 生命、攻击、防御+3.5% | AE100: 竹刺·肆
A101: 13044 | B101: 13014 | C101: 140 | D101: 386 | E101: 809 | F101: 竹刺 | G101: 发射{0}枚竹刺，对敌人造成{1}%伤害。 | H101: 4 | I101: icon_s1304 | J101: S1304 | K101: 1304 | L101: 1304_timeline_TD | M101: 1 | N101: 1 | O101: 5 | P101: 10;60 | Q101: 2 | T101: 722 | U101: 2 | W101: 10 | X101: 60 | AD101: =CONCATENATE("竹刺数量+",U101) -> 竹刺数量+2 | AE101: 竹刺·伍
A102: 13045 | B102: 13014 | C102: 150 | D102: 387 | E102: 810 | F102: 竹刺 | G102: 发射{0}枚竹刺，对敌人造成{1}%伤害。 | H102: 4 | I102: icon_s1304 | J102: S1304 | K102: 1304 | L102: 1304_timeline_TD | M102: 1 | N102: 1 | O102: 6 | P102: 10;60 | Q102: 2 | R102: 101;102;103 | S102: 5 | T102: 722 | W102: 10 | X102: 60 | AD102: =CONCATENATE("生命、攻击、防御+",S102,"%") -> 生命、攻击、防御+5% | AE102: 竹刺·陆
I103: icon_s
A104: =K104*10+O104-1 -> 13050 | B104: =B97+1 -> 13015 | C104: 100 | D104: =D97+6 -> 388 | E104: =E97+6 -> 811 | F104: 飞叶 | G104: 发射{0}枚飞叶，对敌人造成{1}%伤害。 | H104: 4 | I104: icon_s1305 | J104: =CONCATENATE("S",K104) -> S1305 | K104: 1305 | L104: 1305_timeline_TD | M104: 1 | N104: 1 | O104: 1 | P104: =_xlfn.TEXTJOIN(";",1,W104:AC104) -> 6;60 | Q104: 2 | T104: 722 | W104: 6 | X104: 60 | AE104: 飞叶·壹
A105: =K105*10+O105-1 -> 13051 | B105: =B98+1 -> 13015 | C105: 110 | D105: =D98+6 -> 389 | E105: 812 | F105: 飞叶 | G105: 发射{0}枚飞叶，对敌人造成{1}%伤害。 | H105: 4 | I105: icon_s1305 | J105: =CONCATENATE("S",K105) -> S1305 | K105: 1305 | L105: 1305_timeline_TD | M105: 1 | N105: 1 | O105: 2 | P105: =_xlfn.TEXTJOIN(";",1,W105:AC105) -> 6;60 | Q105: 2 | R105: 101;102;103 | S105: 2 | T105: 722 | W105: 6 | X105: 60 | AD105: =CONCATENATE("生命、攻击、防御+",S105,"%") -> 生命、攻击、防御+2% | AE105: 飞叶·贰
A106: 13052 | B106: 13015 | C106: 120 | D106: 390 | E106: 813 | F106: 飞叶 | G106: 发射{0}枚飞叶，对敌人造成{1}%伤害。 | H106: 4 | I106: icon_s1305 | J106: S1305 | K106: 1305 | L106: 1305_timeline_TD | M106: 1 | N106: 1 | O106: 3 | P106: 8;60 | Q106: 2 | T106: 722 | U106: 2 | W106: 8 | X106: 60 | AD106: =CONCATENATE("飞叶数量+",U106) -> 飞叶数量+2 | AE106: 飞叶·叁
A107: 13053 | B107: 13015 | C107: 130 | D107: 391 | E107: 814 | F107: 飞叶 | G107: 发射{0}枚飞叶，对敌人造成{1}%伤害。 | H107: 4 | I107: icon_s1305 | J107: S1305 | K107: 1305 | L107: 1305_timeline_TD | M107: 1 | N107: 1 | O107: 4 | P107: 8;60 | Q107: 2 | R107: 101;102;103 | S107: 3.5 | T107: 722 | W107: 8 | X107: 60 | AD107: =CONCATENATE("生命、攻击、防御+",S107,"%") -> 生命、攻击、防御+3.5% | AE107: 飞叶·肆
A108: 13054 | B108: 13015 | C108: 140 | D108: 392 | E108: 815 | F108: 飞叶 | G108: 发射{0}枚飞叶，对敌人造成{1}%伤害。 | H108: 4 | I108: icon_s1305 | J108: S1305 | K108: 1305 | L108: 1305_timeline_TD | M108: 1 | N108: 1 | O108: 5 | P108: 10;60 | Q108: 2 | T108: 722 | U108: 2 | W108: 10 | X108: 60 | AD108: =CONCATENATE("飞叶数量+",U108) -> 飞叶数量+2 | AE108: 飞叶·伍
A109: 13055 | B109: 13015 | C109: 150 | D109: 393 | E109: 816 | F109: 飞叶 | G109: 发射{0}枚飞叶，对敌人造成{1}%伤害。 | H109: 4 | I109: icon_s1305 | J109: S1305 | K109: 1305 | L109: 1305_timeline_TD | M109: 1 | N109: 1 | O109: 6 | P109: 10;60 | Q109: 2 | R109: 101;102;103 | S109: 5 | T109: 722 | W109: 10 | X109: 60 | AD109: =CONCATENATE("生命、攻击、防御+",S109,"%") -> 生命、攻击、防御+5% | AE109: 飞叶·陆
I110: icon_s
A111: =K111*10+O111-1 -> 14010 | B111: =B104+1 -> 13016 | C111: 100 | D111: =D104+6 -> 394 | E111: =E104+6 -> 817 | F111: 烈焰剑 | G111: 向前方发出{0}柄剑，对敌人造成{1}%火系伤害，并有{2}%的概率施加1层灼烧。 | H111: 8 | I111: icon_s1401 | J111: =CONCATENATE("S",K111) -> S1401 | K111: 1401 | L111: 1401_timeline_TD | M111: 1 | N111: 1 | O111: 1 | P111: =_xlfn.TEXTJOIN(";",1,W111:AC111) -> 6;60;15 | Q111: 2 | T111: 723 | W111: 6 | X111: 60 | Y111: 15 | AE111: 烈焰剑·壹
A112: =K112*10+O112-1 -> 14011 | B112: =B105+1 -> 13016 | C112: 110 | D112: =D105+6 -> 395 | E112: 818 | F112: 烈焰剑 | G112: 向前方发出{0}柄剑，对敌人造成{1}%火系伤害，并有{2}%的概率施加1层灼烧。 | H112: 8 | I112: icon_s1401 | J112: =CONCATENATE("S",K112) -> S1401 | K112: 1401 | L112: 1401_timeline_TD | M112: 1 | N112: 1 | O112: 2 | P112: =_xlfn.TEXTJOIN(";",1,W112:AC112) -> 8;60;15 | Q112: 2 | T112: 723 | U112: 2 | W112: 8 | X112: 60 | Y112: 15 | AD112: =CONCATENATE("剑柄数量+",U112) -> 剑柄数量+2 | AE112: 烈焰剑·贰
A113: 14012 | B113: 13016 | C113: 120 | D113: 396 | E113: 819 | F113: 烈焰剑 | G113: 向前方发出{0}柄剑，对敌人造成{1}%火系伤害，并有{2}%的概率施加1层灼烧。 | H113: 8 | I113: icon_s1401 | J113: S1401 | K113: 1401 | L113: 1401_timeline_TD | M113: 1 | N113: 1 | O113: 3 | P113: 8;60;15 | Q113: 2 | R113: 101 | S113: 10 | T113: 723 | W113: 8 | X113: 60 | Y113: 15 | AD113: =CONCATENATE("生命+",S113,"%") -> 生命+10% | AE113: 烈焰剑·叁
A114: 14013 | B114: 13016 | C114: 130 | D114: 397 | E114: 820 | F114: 烈焰剑 | G114: 向前方发出{0}柄剑，对敌人造成{1}%火系伤害，并有{2}%的概率施加1层灼烧。 | H114: 8 | I114: icon_s1401 | J114: S1401 | K114: 1401 | L114: 1401_timeline_TD | M114: 1 | N114: 1 | O114: 4 | P114: 10;60;15 | Q114: 2 | T114: 723 | U114: 4 | W114: 10 | X114: 60 | Y114: 15 | AD114: =CONCATENATE("剑柄数量+",U114) -> 剑柄数量+4 | AE114: 烈焰剑·肆
A115: 14014 | B115: 13016 | C115: 140 | D115: 398 | E115: 821 | F115: 烈焰剑 | G115: 向前方发出{0}柄剑，对敌人造成{1}%火系伤害，并有{2}%的概率施加1层灼烧。 | H115: 8 | I115: icon_s1401 | J115: S1401 | K115: 1401 | L115: 1401_timeline_TD | M115: 1 | N115: 1 | O115: 5 | P115: 10;60;15 | Q115: 2 | R115: 101 | S115: 20 | T115: 723 | W115: 10 | X115: 60 | Y115: 15 | AD115: =CONCATENATE("生命+",S115,"%") -> 生命+20% | AE115: 烈焰剑·伍
A116: 14015 | B116: 13016 | C116: 150 | D116: 399 | E116: 822 | F116: 烈焰剑 | G116: 向前方发出{0}柄剑，对敌人造成{1}%火系伤害，并有{2}%的概率施加1层灼烧。 每柄烈焰剑将会对敌人照成爆燃，爆燃额外受到{3}%伤害 | H116: 8 | I116: icon_s1401 | J116: S1401 | K116: 1401 | L116: 1401_timeline_TD | M116: 1 | N116: 1 | O116: 6 | P116: 10;60;15;20 | Q116: 2 | T116: 723 | W116: 10 | X116: 60 | Y116: 15 | Z116: 20 | AD116: 额外造成爆燃伤害 | AE116: 烈焰剑·陆
I117: icon_s
A118: =K118*10+O118-1 -> 14020 | B118: =B111+1 -> 13017 | C118: 100 | D118: =D111+6 -> 400 | E118: =E111+6 -> 823 | F118: 赤焰龙吟功 | G118: 飞出{0}道巨龙，对敌人造成{1}火系伤害。 | H118: 8 | I118: icon_s1402 | J118: =CONCATENATE("S",K118) -> S1402 | K118: 1402 | L118: 1402_timeline_TD | M118: 1 | N118: 1 | O118: 1 | P118: =_xlfn.TEXTJOIN(";",1,W118:AC118) -> 2;200 | Q118: 2 | T118: 723 | W118: 2 | X118: 200 | AE118: 赤焰龙吟功·壹
A119: =K119*10+O119-1 -> 14021 | B119: =B112+1 -> 13017 | C119: 110 | D119: =D112+6 -> 401 | E119: 824 | F119: 赤焰龙吟功 | G119: 飞出{0}道巨龙，对敌人造成{1}火系伤害。 如果敌人处于灼烧中对其造成胆摄，眩晕敌人{2}秒。 | H119: 8 | I119: icon_s1402 | J119: =CONCATENATE("S",K119) -> S1402 | K119: 1402 | L119: 1402_timeline_TD | M119: 1 | N119: 1 | O119: 2 | P119: =_xlfn.TEXTJOIN(";",1,W119:AC119) -> 2;200;2 | Q119: 2 | T119: 723 | W119: 2 | X119: 200 | Y119: 2 | AD119: 眩晕处于灼烧中的敌人 | AE119: 赤焰龙吟功·贰
A120: 14022 | B120: 13017 | C120: 120 | D120: 402 | E120: 825 | F120: 赤焰龙吟功 | G120: 飞出{0}道巨龙，对敌人造成{1}火系伤害。 如果敌人处于灼烧中对其造成胆摄，眩晕敌人{2}秒。 | H120: 8 | I120: icon_s1402 | J120: S1402 | K120: 1402 | L120: 1402_timeline_TD | M120: 1 | N120: 1 | O120: 3 | P120: 2;200;2 | Q120: 2 | R120: 102 | S120: 10 | T120: 723 | W120: 2 | X120: 200 | Y120: 2 | AD120: =CONCATENATE("攻击+",S120,"%") -> 攻击+10% | AE120: 赤焰龙吟功·叁
A121: 14023 | B121: 13017 | C121: 130 | D121: 403 | E121: 826 | F121: 赤焰龙吟功 | G121: 飞出{0}道巨龙，对敌人造成{1}火系伤害并{3}%施加1层灼烧。 如果敌人处于灼烧中对其造成胆摄，眩晕敌人{2}秒。 | H121: 8 | I121: icon_s1402 | J121: S1402 | K121: 1402 | L121: 1402_timeline_TD | M121: 1 | N121: 1 | O121: 4 | P121: 3;200;2;100 | Q121: 2 | T121: 723 | U121: 2 | W121: 3 | X121: 200 | Y121: 2 | Z121: 100 | AD121: =CONCATENATE("飞龙数量+",U121,"，额外造成灼烧") -> 飞龙数量+2，额外造成灼烧 | AE121: 赤焰龙吟功·肆
A122: 14024 | B122: 13017 | C122: 140 | D122: 404 | E122: 827 | F122: 赤焰龙吟功 | G122: 飞出{0}道巨龙，对敌人造成{1}火系伤害并{3}%施加1层灼烧。 如果敌人处于灼烧中对其造成胆摄，眩晕敌人{2}秒。 | H122: 8 | I122: icon_s1402 | J122: S1402 | K122: 1402 | L122: 1402_timeline_TD | M122: 1 | N122: 1 | O122: 5 | P122: 3;200;2;100 | Q122: 2 | R122: 102 | S122: 20 | T122: 723 | W122: 3 | X122: 200 | Y122: 2 | Z122: 100 | AD122: =CONCATENATE("攻击+",S122,"%") -> 攻击+20% | AE122: 赤焰龙吟功·伍
A123: 14025 | B123: 13017 | C123: 150 | D123: 405 | E123: 828 | F123: 赤焰龙吟功 | G123: 飞出{0}道巨龙，对敌人造成{1}火系伤害并{3}%施加1层灼烧。 如果敌人处于灼烧中对其造成胆摄，眩晕敌人{2}秒。 飞龙命中目标后引发天雷，对敌人额外造成{4}%伤害。 | H123: 8 | I123: icon_s1402 | J123: S1402 | K123: 1402 | L123: 1402_timeline_TD | M123: 1 | N123: 1 | O123: 6 | P123: 3;200;2;100;25 | Q123: 2 | T123: 723 | W123: 3 | X123: 200 | Y123: 2 | Z123: 100 | AA123: 25 | AD123: 额外引发天雷伤害 | AE123: 赤焰龙吟功·陆
I124: icon_s
A125: =K125*10+O125-1 -> 14030 | B125: =B118+1 -> 13018 | C125: 100 | D125: =D118+6 -> 406 | E125: =E118+6 -> 829 | F125: 朱雀燎原指 | G125: 身后出现一只大手，每个手指发射{0}道烈焰，对敌人照成{1}伤害同时{2}%概率施加1层灼烧。 | H125: 8 | I125: icon_s1403 | J125: =CONCATENATE("S",K125) -> S1403 | K125: 1403 | L125: 1403_timeline_TD | M125: 1 | N125: 1 | O125: 1 | P125: =_xlfn.TEXTJOIN(";",1,W125:AC125) -> 2;20;30 | Q125: 2 | T125: 723 | W125: 2 | X125: 20 | Y125: 30 | AE125: 朱雀燎原指·壹
A126: =K126*10+O126-1 -> 14031 | B126: =B119+1 -> 13018 | C126: 110 | D126: =D119+6 -> 407 | E126: 830 | F126: 朱雀燎原指 | G126: 身后出现一只大手，每个手指发射{0}道烈焰，对敌人照成{1}伤害同时{2}%概率施加1层灼烧。 对有灼烧的敌人额外造成{3}%最终伤害。 | H126: 8 | I126: icon_s1403 | J126: =CONCATENATE("S",K126) -> S1403 | K126: 1403 | L126: 1403_timeline_TD | M126: 1 | N126: 1 | O126: 2 | P126: =_xlfn.TEXTJOIN(";",1,W126:AC126) -> 2;20;30;20 | Q126: 2 | T126: 723 | W126: 2 | X126: 20 | Y126: 30 | Z126: 20 | AD126: 对灼烧的敌人额外增伤 | AE126: 朱雀燎原指·贰
A127: 14032 | B127: 13018 | C127: 120 | D127: 408 | E127: 831 | F127: 朱雀燎原指 | G127: 身后出现一只大手，每个手指发射{0}道烈焰，对敌人照成{1}伤害同时{2}%概率施加1层灼烧。 对有灼烧的敌人额外造成{3}%最终伤害。 | H127: 8 | I127: icon_s1403 | J127: S1403 | K127: 1403 | L127: 1403_timeline_TD | M127: 1 | N127: 1 | O127: 3 | P127: 2;20;30;20 | Q127: 2 | R127: 103 | S127: 10 | T127: 723 | W127: 2 | X127: 20 | Y127: 30 | Z127: 20 | AD127: =CONCATENATE("防御+",S127,"%") -> 防御+10% | AE127: 朱雀燎原指·叁
A128: 14033 | B128: 13018 | C128: 130 | D128: 409 | E128: 832 | F128: 朱雀燎原指 | G128: 身后出现一只大手，每个手指发射{0}道烈焰，对敌人照成{1}伤害同时{2}%概率施加1层灼烧。 对有灼烧的敌人额外造成{3}%最终伤害。 | H128: 8 | I128: icon_s1403 | J128: S1403 | K128: 1403 | L128: 1403_timeline_TD | M128: 1 | N128: 1 | O128: 4 | P128: 3;20;30;20 | Q128: 2 | T128: 723 | W128: 3 | X128: 20 | Y128: 30 | Z128: 20 | AD128: 每个手指额外发射1道烈焰 | AE128: 朱雀燎原指·肆
A129: 14034 | B129: 13018 | C129: 140 | D129: 410 | E129: 833 | F129: 朱雀燎原指 | G129: 身后出现一只大手，每个手指发射{0}道烈焰，对敌人照成{1}伤害同时{2}%概率施加1层灼烧。 对有灼烧的敌人额外造成{3}%最终伤害。 | H129: 8 | I129: icon_s1403 | J129: S1403 | K129: 1403 | L129: 1403_timeline_TD | M129: 1 | N129: 1 | O129: 5 | P129: 3;20;30;20 | Q129: 2 | R129: 103 | S129: 20 | T129: 723 | W129: 3 | X129: 20 | Y129: 30 | Z129: 20 | AD129: =CONCATENATE("防御+",S129,"%") -> 防御+20% | AE129: 朱雀燎原指·伍
A130: 14035 | B130: 13018 | C130: 150 | D130: 411 | E130: 834 | F130: 朱雀燎原指 | G130: 身后出现一只大手，每个手指发射{0}道烈焰，对敌人照成{1}伤害同时{2}%概率施加1层灼烧。 对有灼烧的敌人额外造成{3}%最终伤害。 在左右各出现一只大手发射烈焰，但每道烈焰伤害降低{4}%。 | H130: 8 | I130: icon_s1403 | J130: S1403 | K130: 1403 | L130: 1403_timeline_TD | M130: 1 | N130: 1 | O130: 6 | P130: 3;20;30;20;35 | Q130: 2 | T130: 723 | W130: 3 | X130: 20 | Y130: 30 | Z130: 20 | AA130: 35 | AD130: 出现2只大手但单发伤害降低 | AE130: 朱雀燎原指·陆
I131: =CONCATENATE("icon_s",K131) -> icon_s
A132: =K132*10+O132-1 -> 14040 | B132: =B125+1 -> 13019 | C132: 100 | D132: =D125+6 -> 412 | E132: =E125+6 -> 835 | F132: 火球 | G132: 发射{0}枚火球，对敌人造成{1}%伤害。又{2}概率对敌人施加1成灼烧 | H132: 8 | I132: icon_s1404 | J132: =CONCATENATE("S",K132) -> S1404 | K132: 1404 | L132: 1404_timeline_TD | M132: 1 | N132: 1 | O132: 1 | P132: =_xlfn.TEXTJOIN(";",1,W132:AC132) -> 3;70;20 | Q132: 2 | T132: 723 | W132: 3 | X132: 70 | Y132: 20 | AE132: 火球·壹
A133: =K133*10+O133-1 -> 14041 | B133: =B126+1 -> 13019 | C133: 110 | D133: =D126+6 -> 413 | E133: 836 | F133: 火球 | G133: 发射{0}枚火球，对敌人造成{1}%伤害。又{2}概率对敌人施加1成灼烧 | H133: 8 | I133: icon_s1404 | J133: =CONCATENATE("S",K133) -> S1404 | K133: 1404 | L133: 1404_timeline_TD | M133: 1 | N133: 1 | O133: 2 | P133: =_xlfn.TEXTJOIN(";",1,W133:AC133) -> 3;70;20 | Q133: 2 | R133: 101;102;103 | S133: 2 | T133: 723 | W133: 3 | X133: 70 | Y133: 20 | AD133: =CONCATENATE("生命、攻击、防御+",S133,"%") -> 生命、攻击、防御+2% | AE133: 火球·贰
A134: 14042 | B134: 13019 | C134: 120 | D134: 414 | E134: 837 | F134: 火球 | G134: 发射{0}枚火球，对敌人造成{1}%伤害。又{2}概率对敌人施加1成灼烧 | H134: 8 | I134: icon_s1404 | J134: S1404 | K134: 1404 | L134: 1404_timeline_TD | M134: 1 | N134: 1 | O134: 3 | P134: 4;70;20 | Q134: 2 | T134: 723 | U134: 1 | W134: 4 | X134: 70 | Y134: 20 | AD134: =CONCATENATE("火球数量+",U134) -> 火球数量+1 | AE134: 火球·叁
A135: 14043 | B135: 13019 | C135: 130 | D135: 415 | E135: 838 | F135: 火球 | G135: 发射{0}枚火球，对敌人造成{1}%伤害。又{2}概率对敌人施加1成灼烧 | H135: 8 | I135: icon_s1404 | J135: S1404 | K135: 1404 | L135: 1404_timeline_TD | M135: 1 | N135: 1 | O135: 4 | P135: 4;70;20 | Q135: 2 | R135: 101;102;103 | S135: 3.5 | T135: 723 | W135: 4 | X135: 70 | Y135: 20 | AD135: =CONCATENATE("生命、攻击、防御+",S135,"%") -> 生命、攻击、防御+3.5% | AE135: 火球·肆
A136: 14044 | B136: 13019 | C136: 140 | D136: 416 | E136: 839 | F136: 火球 | G136: 发射{0}枚火球，对敌人造成{1}%伤害。又{2}概率对敌人施加1成灼烧 | H136: 8 | I136: icon_s1404 | J136: S1404 | K136: 1404 | L136: 1404_timeline_TD | M136: 1 | N136: 1 | O136: 5 | P136: 5;70;20 | Q136: 2 | T136: 723 | U136: 2 | W136: 5 | X136: 70 | Y136: 20 | AD136: =CONCATENATE("火球数量+",U136) -> 火球数量+2 | AE136: 火球·伍
A137: 14045 | B137: 13019 | C137: 150 | D137: 417 | E137: 840 | F137: 火球 | G137: 发射{0}枚火球，对敌人造成{1}%伤害。又{2}概率对敌人施加1成灼烧 | H137: 8 | I137: icon_s1404 | J137: S1404 | K137: 1404 | L137: 1404_timeline_TD | M137: 1 | N137: 1 | O137: 6 | P137: 5;100;20 | Q137: 2 | R137: 101;102;103 | S137: 5 | T137: 723 | W137: 5 | X137: 100 | Y137: 20 | AD137: 生命、攻击、防御+5% | AE137: 火球·陆
I138: icon_s
A139: =K139*10+O139-1 -> 14050 | B139: =B132+1 -> 13020 | C139: 100 | D139: =D132+6 -> 418 | E139: =E132+6 -> 841 | F139: 火刀 | G139: 发射{0}枚火刃，对敌人造成{1}%伤害。 | H139: 8 | I139: icon_s1405 | J139: =CONCATENATE("S",K139) -> S1405 | K139: 1405 | L139: 1405_timeline_TD | M139: 1 | N139: 1 | O139: 1 | P139: =_xlfn.TEXTJOIN(";",1,W139:AC139) -> 3;80 | Q139: 2 | T139: 723 | W139: 3 | X139: 80 | AE139: 火刀·壹
A140: =K140*10+O140-1 -> 14051 | B140: =B133+1 -> 13020 | C140: 110 | D140: =D133+6 -> 419 | E140: 842 | F140: 火刀 | G140: 发射{0}枚火刃，对敌人造成{1}%伤害。 | H140: 8 | I140: icon_s1405 | J140: =CONCATENATE("S",K140) -> S1405 | K140: 1405 | L140: 1405_timeline_TD | M140: 1 | N140: 1 | O140: 2 | P140: =_xlfn.TEXTJOIN(";",1,W140:AC140) -> 3;80 | Q140: 2 | R140: 101;102;103 | S140: 2 | T140: 723 | W140: 3 | X140: 80 | AD140: =CONCATENATE("生命、攻击、防御+",S140,"%") -> 生命、攻击、防御+2% | AE140: 火刀·贰
A141: 14052 | B141: 13020 | C141: 120 | D141: 420 | E141: 843 | F141: 火刀 | G141: 发射{0}枚火刃，对敌人造成{1}%伤害。 | H141: 8 | I141: icon_s1405 | J141: S1405 | K141: 1405 | L141: 1405_timeline_TD | M141: 1 | N141: 1 | O141: 3 | P141: 4;80 | Q141: 2 | T141: 723 | U141: 1 | W141: 4 | X141: 80 | AD141: =CONCATENATE("火刃数量+",U141) -> 火刃数量+1 | AE141: 火刀·叁
A142: 14053 | B142: 13020 | C142: 130 | D142: 421 | E142: 844 | F142: 火刀 | G142: 发射{0}枚火刃，对敌人造成{1}%伤害。 | H142: 8 | I142: icon_s1405 | J142: S1405 | K142: 1405 | L142: 1405_timeline_TD | M142: 1 | N142: 1 | O142: 4 | P142: 4;80 | Q142: 2 | R142: 101;102;103 | S142: 3.5 | T142: 723 | W142: 4 | X142: 80 | AD142: =CONCATENATE("生命、攻击、防御+",S142,"%") -> 生命、攻击、防御+3.5% | AE142: 火刀·肆
A143: 14054 | B143: 13020 | C143: 140 | D143: 422 | E143: 845 | F143: 火刀 | G143: 发射{0}枚火刃，对敌人造成{1}%伤害。 | H143: 8 | I143: icon_s1405 | J143: S1405 | K143: 1405 | L143: 1405_timeline_TD | M143: 1 | N143: 1 | O143: 5 | P143: 5;80 | Q143: 2 | T143: 723 | U143: 2 | W143: 5 | X143: 80 | AD143: =CONCATENATE("火刃数量+",U143) -> 火刃数量+2 | AE143: 火刀·伍
A144: 14055 | B144: 13020 | C144: 150 | D144: 423 | E144: 846 | F144: 火刀 | G144: 发射{0}枚火刃，对敌人造成{1}%伤害。 | H144: 8 | I144: icon_s1405 | J144: S1405 | K144: 1405 | L144: 1405_timeline_TD | M144: 1 | N144: 1 | O144: 6 | P144: 5;100 | Q144: 2 | R144: 101;102;103 | S144: 5 | T144: 723 | W144: 5 | X144: 100 | AD144: 生命、攻击、防御+5% | AE144: 火刀·陆
I145: icon_s
A146: =K146*10+O146-1 -> 15010 | B146: =B139+1 -> 13021 | C146: 100 | D146: =D139+6 -> 424 | E146: =E139+6 -> 847 | F146: 黄尘灭魂刺 | G146: 沙尘汇聚成{0}枚土刺，对敌人造成{1}%伤害，并有{2}%概率施加1层细尘。 | H146: 16 | I146: icon_s1501 | J146: =CONCATENATE("S",K146) -> S1501 | K146: 1501 | L146: bingqiu_timeline_TD | M146: 1 | N146: 1 | O146: 1 | P146: =_xlfn.TEXTJOIN(";",1,W146:AC146) -> 3;120;30 | Q146: 2 | T146: 722 | W146: 3 | X146: 120 | Y146: 30 | AE146: 黄尘灭魂刺·壹
A147: =K147*10+O147-1 -> 15011 | B147: =B140+1 -> 13021 | C147: 110 | D147: =D140+6 -> 425 | E147: 848 | F147: 黄尘灭魂刺 | G147: 沙尘汇聚成{0}枚土刺，对敌人造成{1}%伤害，并有{2}%概率施加1层细尘。 | H147: 16 | I147: icon_s1501 | J147: =CONCATENATE("S",K147) -> S1501 | K147: 1501 | L147: bingqiu_timeline_TD | M147: 1 | N147: 1 | O147: 2 | P147: =_xlfn.TEXTJOIN(";",1,W147:AC147) -> 4;120;30 | Q147: 2 | T147: 722 | U147: 1 | W147: 4 | X147: 120 | Y147: 30 | AD147: =CONCATENATE("土刺数量+",U147) -> 土刺数量+1 | AE147: 黄尘灭魂刺·贰
A148: 15012 | B148: 13021 | C148: 120 | D148: 426 | E148: 849 | F148: 黄尘灭魂刺 | G148: 沙尘汇聚成{0}枚土刺，对敌人造成{1}%伤害，并有{2}%概率施加1层细尘。 | H148: 16 | I148: icon_s1501 | J148: S1501 | K148: 1501 | L148: bingqiu_timeline_TD | M148: 1 | N148: 1 | O148: 3 | P148: 4;120;30 | Q148: 2 | R148: 101 | S148: 10 | T148: 722 | W148: 4 | X148: 120 | Y148: 30 | AD148: =CONCATENATE("生命+",S148,"%") -> 生命+10% | AE148: =IF(F148="","",CONCATENATE(F148,"·",CHOOSE(O148,"壹","贰","叁","肆","伍","陆"))) -> 黄尘灭魂刺·叁
A149: 15013 | B149: 13021 | C149: 130 | D149: 427 | E149: 850 | F149: 黄尘灭魂刺 | G149: 沙尘汇聚成{0}枚土刺，对敌人造成{1}%伤害，并有{2}%概率施加1层细尘。 | H149: 16 | I149: icon_s1501 | J149: S1501 | K149: 1501 | L149: bingqiu_timeline_TD | M149: 1 | N149: 1 | O149: 4 | P149: 5;120;30 | Q149: 2 | T149: 722 | U149: 2 | W149: 5 | X149: 120 | Y149: 30 | AD149: =CONCATENATE("土刺数量+",U149) -> 土刺数量+2 | AE149: 黄尘灭魂刺·肆
A150: 15014 | B150: 13021 | C150: 140 | D150: 428 | E150: 851 | F150: 黄尘灭魂刺 | G150: 沙尘汇聚成{0}枚土刺，对敌人造成{1}%伤害，并有{2}%概率施加1层细尘。 | H150: 16 | I150: icon_s1501 | J150: S1501 | K150: 1501 | L150: bingqiu_timeline_TD | M150: 1 | N150: 1 | O150: 5 | P150: 5;120;30 | Q150: 2 | R150: 101 | S150: 20 | T150: 722 | W150: 5 | X150: 120 | Y150: 30 | AD150: =CONCATENATE("生命+",S150,"%") -> 生命+20% | AE150: 黄尘灭魂刺·伍
A151: 15015 | B151: 13021 | C151: 150 | D151: 429 | E151: 852 | F151: 黄尘灭魂刺 | G151: 沙尘汇聚成{0}枚土刺，对敌人造成{1}%伤害，并有{2}%概率施加1层细尘。 | H151: 16 | I151: icon_s1501 | J151: S1501 | K151: 1501 | L151: bingqiu_timeline_TD | M151: 1 | N151: 1 | O151: 6 | P151: 6;120;30 | Q151: 2 | T151: 722 | U151: 3 | W151: 6 | X151: 120 | Y151: 30 | AD151: =CONCATENATE("土刺数量+",U151) -> 土刺数量+3 | AE151: 黄尘灭魂刺·陆
I152: icon_s
A153: =K153*10+O153-1 -> 15020 | B153: =B146+1 -> 13022 | C153: 100 | D153: =D146+6 -> 430 | E153: =E146+6 -> 853 | F153: 地裂屠龙斩 | G153: 一柄虚空形成的大刀，横空挥砍形成{0}个刀气，对敌人造成{1}%伤害，并有{2}%概率叠加1层破甲 | H153: 16 | I153: icon_s1502 | J153: =CONCATENATE("S",K153) -> S1502 | K153: 1502 | L153: bingzhui_timeline_TD | M153: 1 | N153: 1 | O153: 1 | P153: =_xlfn.TEXTJOIN(";",1,W153:AC153) -> 3;120;30 | Q153: 2 | T153: 723 | W153: 3 | X153: 120 | Y153: 30 | AE153: 地裂屠龙斩·壹
A154: =K154*10+O154-1 -> 15021 | B154: =B147+1 -> 13022 | C154: 110 | D154: =D147+6 -> 431 | E154: 854 | F154: 地裂屠龙斩 | G154: 一柄虚空形成的大刀，横空挥砍形成{0}个刀气，对敌人造成{1}%伤害，并有{2}%概率叠加1层破甲 | H154: 16 | I154: icon_s1502 | J154: =CONCATENATE("S",K154) -> S1502 | K154: 1502 | L154: bingzhui_timeline_TD | M154: 1 | N154: 1 | O154: 2 | P154: =_xlfn.TEXTJOIN(";",1,W154:AC154) -> 4;120;30 | Q154: 2 | T154: 723 | U154: 1 | W154: 4 | X154: 120 | Y154: 30 | AD154: =CONCATENATE("刀气数量+",U154) -> 刀气数量+1 | AE154: 地裂屠龙斩·贰
A155: 15022 | B155: 13022 | C155: 120 | D155: 432 | E155: 855 | F155: 地裂屠龙斩 | G155: 一柄虚空形成的大刀，横空挥砍形成{0}个刀气，对敌人造成{1}%伤害，并有{2}%概率叠加1层破甲 | H155: 16 | I155: icon_s1502 | J155: S1502 | K155: 1502 | L155: bingzhui_timeline_TD | M155: 1 | N155: 1 | O155: 3 | P155: 4;120;30 | Q155: 2 | R155: 102 | S155: 10 | T155: 723 | W155: 4 | X155: 120 | Y155: 30 | AD155: =CONCATENATE("攻击+",S155,"%") -> 攻击+10% | AE155: 地裂屠龙斩·叁
A156: 15023 | B156: 13022 | C156: 130 | D156: 433 | E156: 856 | F156: 地裂屠龙斩 | G156: 一柄虚空形成的大刀，横空挥砍形成{0}个刀气，对敌人造成{1}%伤害，并有{2}%概率叠加1层破甲 | H156: 16 | I156: icon_s1502 | J156: S1502 | K156: 1502 | L156: bingzhui_timeline_TD | M156: 1 | N156: 1 | O156: 4 | P156: 5;120;30 | Q156: 2 | T156: 723 | U156: 2 | W156: 5 | X156: 120 | Y156: 30 | AD156: =CONCATENATE("刀气数量+",U156) -> 刀气数量+2 | AE156: 地裂屠龙斩·肆
A157: 15024 | B157: 13022 | C157: 140 | D157: 434 | E157: 857 | F157: 地裂屠龙斩 | G157: 一柄虚空形成的大刀，横空挥砍形成{0}个刀气，对敌人造成{1}%伤害，并有{2}%概率叠加1层破甲 | H157: 16 | I157: icon_s1502 | J157: S1502 | K157: 1502 | L157: bingzhui_timeline_TD | M157: 1 | N157: 1 | O157: 5 | P157: 5;120;30 | Q157: 2 | R157: 102 | S157: 20 | T157: 723 | W157: 5 | X157: 120 | Y157: 30 | AD157: =CONCATENATE("攻击+",S157,"%") -> 攻击+20% | AE157: 地裂屠龙斩·伍
A158: 15025 | B158: 13022 | C158: 150 | D158: 435 | E158: 858 | F158: 地裂屠龙斩 | G158: 一柄虚空形成的大刀，横空挥砍形成{0}个刀气，对敌人造成{1}%伤害，并有{2}%概率叠加1层破甲 | H158: 16 | I158: icon_s1502 | J158: S1502 | K158: 1502 | L158: bingzhui_timeline_TD | M158: 1 | N158: 1 | O158: 6 | P158: 6;120;30 | Q158: 2 | T158: 723 | U158: 3 | W158: 6 | X158: 120 | Y158: 30 | AD158: =CONCATENATE("刀气数量+",U158) -> 刀气数量+3 | AE158: 地裂屠龙斩·陆
I159: icon_s
B160: =B153+1 -> 13023 | C160: 100 | D160: =D153+6 -> 436 | E160: =E153+6 -> 859 | G160: 占位 | H160: 16 | I160: icon_s1503 | J160: =CONCATENATE("S",K160) -> S1503 | K160: 1503 | L160: bingzhui_timeline_TD | M160: 1 | N160: 1 | O160: 1 | P160: =_xlfn.TEXTJOIN(";",1,W160:AC160) -> 3;120;30 | Q160: 2 | T160: 723 | W160: 3 | X160: 120 | Y160: 30 | AE160: =IF(F160="","",CONCATENATE(F160,"·",CHOOSE(O160,"壹","贰","叁","肆","伍","陆"))) -> 
B161: =B154+1 -> 13023 | C161: 110 | D161: =D154+6 -> 437 | E161: 860 | G161: 占位 | H161: 16 | I161: icon_s1503 | J161: =CONCATENATE("S",K161) -> S1503 | K161: 1503 | L161: bingzhui_timeline_TD | M161: 1 | N161: 1 | O161: 2 | P161: =_xlfn.TEXTJOIN(";",1,W161:AC161) -> 4;120;30 | Q161: 2 | T161: 723 | U161: 1 | W161: 4 | X161: 120 | Y161: 30 | AD161: =CONCATENATE("刀气数量+",U161) -> 刀气数量+1
B162: 13023 | C162: 120 | D162: =D155+6 -> 438 | E162: 861 | G162: 占位 | H162: 16 | I162: icon_s1503 | J162: S1503 | K162: 1503 | L162: bingzhui_timeline_TD | M162: 1 | N162: 1 | O162: 3 | P162: 4;120;30 | Q162: 2 | R162: 102 | S162: 10 | T162: 723 | W162: 4 | X162: 120 | Y162: 30 | AD162: =CONCATENATE("攻击+",S162,"%") -> 攻击+10%
B163: 13023 | C163: 130 | D163: =D156+6 -> 439 | E163: 862 | G163: 占位 | H163: 16 | I163: icon_s1503 | J163: S1503 | K163: 1503 | L163: bingzhui_timeline_TD | M163: 1 | N163: 1 | O163: 4 | P163: 5;120;30 | Q163: 2 | T163: 723 | U163: 2 | W163: 5 | X163: 120 | Y163: 30 | AD163: =CONCATENATE("刀气数量+",U163) -> 刀气数量+2
B164: 13023 | C164: 140 | D164: =D157+6 -> 440 | E164: 863 | G164: 占位 | H164: 16 | I164: icon_s1503 | J164: S1503 | K164: 1503 | L164: bingzhui_timeline_TD | M164: 1 | N164: 1 | O164: 5 | P164: 5;120;30 | Q164: 2 | R164: 102 | S164: 20 | T164: 723 | W164: 5 | X164: 120 | Y164: 30 | AD164: =CONCATENATE("攻击+",S164,"%") -> 攻击+20%
B165: 13023 | C165: 150 | D165: =D158+6 -> 441 | E165: 864 | G165: 占位 | H165: 16 | I165: icon_s1503 | J165: S1503 | K165: 1503 | L165: bingzhui_timeline_TD | M165: 1 | N165: 1 | O165: 6 | P165: 6;120;30 | Q165: 2 | T165: 723 | U165: 3 | W165: 6 | X165: 120 | Y165: 30 | AD165: =CONCATENATE("刀气数量+",U165) -> 刀气数量+3
I166: icon_s
A167: =K167*10+O167-1 -> 15040 | B167: =B160+1 -> 13024 | C167: 100 | D167: =D153+6 -> 436 | E167: 859 | F167: 落石 | G167: 从天而降{0}枚落石，对敌人造成{1}%伤害。 | H167: 16 | I167: icon_s1504 | J167: =CONCATENATE("S",K167) -> S1504 | K167: 1504 | L167: bingqiu_timeline_TD | M167: 1 | N167: 1 | O167: 1 | P167: =_xlfn.TEXTJOIN(";",1,W167:AC167) -> 3;100 | Q167: 2 | T167: 723 | W167: 3 | X167: 100 | AE167: 落石·壹
A168: =K168*10+O168-1 -> 15041 | B168: =B161+1 -> 13024 | C168: 110 | D168: 437 | E168: 860 | F168: 落石 | G168: 从天而降{0}枚落石，对敌人造成{1}%伤害。 | H168: 16 | I168: icon_s1504 | J168: =CONCATENATE("S",K168) -> S1504 | K168: 1504 | L168: bingqiu_timeline_TD | M168: 1 | N168: 1 | O168: 2 | P168: =_xlfn.TEXTJOIN(";",1,W168:AC168) -> 3;100 | Q168: 2 | R168: 101;102;103 | S168: 2 | T168: 723 | W168: 3 | X168: 100 | AD168: =CONCATENATE("生命、攻击、防御+",S168,"%") -> 生命、攻击、防御+2% | AE168: 落石·贰
A169: 15042 | B169: 13024 | C169: 120 | D169: 438 | E169: 861 | F169: 落石 | G169: 从天而降{0}枚落石，对敌人造成{1}%伤害。 | H169: 16 | I169: icon_s1504 | J169: S1504 | K169: 1504 | L169: bingqiu_timeline_TD | M169: 1 | N169: 1 | O169: 3 | P169: 4;100 | Q169: 2 | T169: 723 | U169: 1 | W169: 4 | X169: 100 | AD169: =CONCATENATE("落石数量+",U169) -> 落石数量+1 | AE169: 落石·叁
A170: 15043 | B170: 13024 | C170: 130 | D170: 439 | E170: 862 | F170: 落石 | G170: 从天而降{0}枚落石，对敌人造成{1}%伤害。 | H170: 16 | I170: icon_s1504 | J170: S1504 | K170: 1504 | L170: bingqiu_timeline_TD | M170: 1 | N170: 1 | O170: 4 | P170: 4;100 | Q170: 2 | R170: 101;102;103 | S170: 3.5 | T170: 723 | W170: 4 | X170: 100 | AD170: =CONCATENATE("生命、攻击、防御+",S170,"%") -> 生命、攻击、防御+3.5% | AE170: 落石·肆
A171: 15044 | B171: 13024 | C171: 140 | D171: 440 | E171: 863 | F171: 落石 | G171: 从天而降{0}枚落石，对敌人造成{1}%伤害。 | H171: 16 | I171: icon_s1504 | J171: S1504 | K171: 1504 | L171: bingqiu_timeline_TD | M171: 1 | N171: 1 | O171: 5 | P171: 5;100 | Q171: 2 | T171: 723 | U171: 2 | W171: 5 | X171: 100 | AD171: =CONCATENATE("落石数量+",U171) -> 落石数量+2 | AE171: 落石·伍
A172: 15045 | B172: 13024 | C172: 150 | D172: 441 | E172: 864 | F172: 落石 | G172: 从天而降{0}枚落石，对敌人造成{1}%伤害。 | H172: 16 | I172: icon_s1504 | J172: S1504 | K172: 1504 | L172: bingqiu_timeline_TD | M172: 1 | N172: 1 | O172: 6 | P172: 5;100 | Q172: 2 | R172: 101;102;103 | S172: 5 | T172: 723 | W172: 5 | X172: 100 | AD172: =CONCATENATE("生命、攻击、防御+",S172,"%") -> 生命、攻击、防御+5% | AE172: 落石·陆
I173: icon_s
A174: =K174*10+O174-1 -> 15050 | B174: =B167+1 -> 13025 | C174: 100 | D174: =D167+6 -> 442 | E174: =E167+6 -> 865 | F174: 小石头 | G174: 发射{0}枚小石头，对敌人造成{1}%伤害。 | H174: 16 | I174: icon_s1505 | J174: =CONCATENATE("S",K174) -> S1505 | K174: 1505 | L174: bingzhui_timeline_TD | M174: 1 | N174: 1 | O174: 1 | P174: =_xlfn.TEXTJOIN(";",1,W174:AC174) -> 6;100 | Q174: 2 | T174: 723 | W174: 6 | X174: 100 | AE174: 小石头·壹
A175: =K175*10+O175-1 -> 15051 | B175: =B168+1 -> 13025 | C175: 110 | D175: =D168+6 -> 443 | E175: 866 | F175: 小石头 | G175: 发射{0}枚小石头，对敌人造成{1}%伤害。 | H175: 16 | I175: icon_s1505 | J175: =CONCATENATE("S",K175) -> S1505 | K175: 1505 | L175: bingzhui_timeline_TD | M175: 1 | N175: 1 | O175: 2 | P175: =_xlfn.TEXTJOIN(";",1,W175:AC175) -> 6;100 | Q175: 2 | R175: 101;102;103 | S175: 2 | T175: 723 | W175: 6 | X175: 100 | AD175: =CONCATENATE("生命、攻击、防御+",S175,"%") -> 生命、攻击、防御+2% | AE175: 小石头·贰
A176: 15052 | B176: 13025 | C176: 120 | D176: 444 | E176: 867 | F176: 小石头 | G176: 发射{0}枚小石头，对敌人造成{1}%伤害。 | H176: 16 | I176: icon_s1505 | J176: S1505 | K176: 1505 | L176: bingzhui_timeline_TD | M176: 1 | N176: 1 | O176: 3 | P176: 8;100 | Q176: 2 | T176: 723 | U176: 2 | W176: 8 | X176: 100 | AD176: =CONCATENATE("小石头数量+",U176) -> 小石头数量+2 | AE176: 小石头·叁
A177: 15053 | B177: 13025 | C177: 130 | D177: 445 | E177: 868 | F177: 小石头 | G177: 发射{0}枚小石头，对敌人造成{1}%伤害。 | H177: 16 | I177: icon_s1505 | J177: S1505 | K177: 1505 | L177: bingzhui_timeline_TD | M177: 1 | N177: 1 | O177: 4 | P177: 8;100 | Q177: 2 | R177: 101;102;103 | S177: 3.5 | T177: 723 | W177: 8 | X177: 100 | AD177: =CONCATENATE("生命、攻击、防御+",S177,"%") -> 生命、攻击、防御+3.5% | AE177: 小石头·肆
A178: 15054 | B178: 13025 | C178: 140 | D178: 446 | E178: 869 | F178: 小石头 | G178: 发射{0}枚小石头，对敌人造成{1}%伤害。 | H178: 16 | I178: icon_s1505 | J178: S1505 | K178: 1505 | L178: bingzhui_timeline_TD | M178: 1 | N178: 1 | O178: 5 | P178: 10;100 | Q178: 2 | T178: 723 | U178: 4 | W178: 10 | X178: 100 | AD178: =CONCATENATE("小石头数量+",U178) -> 小石头数量+4 | AE178: 小石头·伍
A179: 15055 | B179: 13025 | C179: 150 | D179: 447 | E179: 870 | F179: 小石头 | G179: 发射{0}枚小石头，对敌人造成{1}%伤害。 | H179: 16 | I179: icon_s1505 | J179: S1505 | K179: 1505 | L179: bingzhui_timeline_TD | M179: 1 | N179: 1 | O179: 6 | P179: 10;100 | Q179: 2 | R179: 101;102;103 | S179: 5 | T179: 723 | W179: 10 | X179: 100 | AD179: =CONCATENATE("生命、攻击、防御+",S179,"%") -> 生命、攻击、防御+5% | AE179: 小石头·陆
I180: icon_s
B181: 英雄-被动功法区域 | I181: icon_s
A182: =K182*10+O182-1 -> 20010 | B182: 13006 | C182: 100 | D182: =D174+6 -> 448 | E182: =E174+6 -> 871 | F182: 天衍星辰诀 | G182: 引星辰之力入体，增强玩家体魄， 让后方槽位的功法无视防御性护盾（功法法宝带来的防护罩、自身护盾） | H182: 0 | I182: icon_s2001 | J182: =CONCATENATE("S",K182) -> S2001 | K182: 2001 | M182: 1 | N182: 2 | O182: 1 | P182: =_xlfn.TEXTJOIN(";",1,W182:AC182) ->  | Q182: 0 | T182: 724 | V182: -1 | AE182: 天衍星辰诀·壹
A183: =K183*10+O183-1 -> 20011 | B183: 13006 | C183: 110 | D183: =D175+6 -> 449 | E183: 872 | F183: 天衍星辰诀 | G183: 引星辰之力入体，增强玩家体魄， 让后方槽位的功法无视防御性护盾（功法法宝带来的防护罩、自身护盾） | H183: 0 | I183: icon_s2001 | J183: =CONCATENATE("S",K183) -> S2001 | K183: 2001 | M183: 1 | N183: 2 | O183: 2 | P183: =_xlfn.TEXTJOIN(";",1,W183:AC183) ->  | Q183: 0 | R183: 101;102;103 | S183: 2 | T183: 724 | V183: -1 | AD183: =CONCATENATE("生命、攻击、防御+",S183,"%") -> 生命、攻击、防御+2% | AE183: 天衍星辰诀·贰
A184: 20012 | B184: 13006 | C184: 120 | D184: 450 | E184: 873 | F184: 天衍星辰诀 | G184: 引星辰之力入体，增强玩家体魄， 让后方槽位的功法无视防御性护盾（功法法宝带来的防护罩、自身护盾） | H184: 0 | I184: icon_s2001 | J184: S2001 | K184: 2001 | M184: 1 | N184: 2 | O184: 3 | Q184: 0 | R184: 101;102;103 | S184: 4 | T184: 724 | V184: -1 | AD184: =CONCATENATE("生命、攻击、防御+",S184,"%") -> 生命、攻击、防御+4% | AE184: 天衍星辰诀·叁
A185: 20013 | B185: 13006 | C185: 130 | D185: 451 | E185: 874 | F185: 天衍星辰诀 | G185: 引星辰之力入体，增强玩家体魄， 让后方槽位的功法无视防御性护盾（功法法宝带来的防护罩、自身护盾） | H185: 0 | I185: icon_s2001 | J185: S2001 | K185: 2001 | M185: 1 | N185: 2 | O185: 4 | Q185: 0 | R185: 101;102;103 | S185: 6 | T185: 724 | V185: -1 | AD185: =CONCATENATE("生命、攻击、防御+",S185,"%") -> 生命、攻击、防御+6% | AE185: 天衍星辰诀·肆
A186: 20014 | B186: 13006 | C186: 140 | D186: 452 | E186: 875 | F186: 天衍星辰诀 | G186: 引星辰之力入体，增强玩家体魄， 让后方槽位的功法无视防御性护盾（功法法宝带来的防护罩、自身护盾） | H186: 0 | I186: icon_s2001 | J186: S2001 | K186: 2001 | M186: 1 | N186: 2 | O186: 5 | Q186: 0 | R186: 101;102;103 | S186: 8 | T186: 724 | V186: -1 | AD186: =CONCATENATE("生命、攻击、防御+",S186,"%") -> 生命、攻击、防御+8% | AE186: 天衍星辰诀·伍
A187: 20015 | B187: 13006 | C187: 150 | D187: 453 | E187: 876 | F187: 天衍星辰诀 | G187: 引星辰之力入体，增强玩家体魄， 让后方槽位的功法无视防御性护盾（功法法宝带来的防护罩、自身护盾） | H187: 0 | I187: icon_s2001 | J187: S2001 | K187: 2001 | M187: 1 | N187: 2 | O187: 6 | Q187: 0 | R187: 101;102;103 | S187: 8 | T187: 724 | V187: -1 | AD187: 穿过护盾时额外对护盾照成等额伤害 | AE187: 天衍星辰诀·陆
I188: icon_s
A189: =K189*10+O189-1 -> 20020 | B189: 13006 | C189: 100 | D189: =D182+6 -> 454 | E189: =E182+6 -> 877 | F189: 法宝秘籍 | G189: 后方槽位技能在击中目标时，为法宝提供{0}%充能 | H189: 0 | I189: icon_s2002 | J189: =CONCATENATE("S",K189) -> S2002 | K189: =K182+1 -> 2002 | M189: 1 | N189: 2 | O189: 1 | P189: =_xlfn.TEXTJOIN(";",1,W189:AC189) -> 1 | Q189: 0 | T189: 724 | V189: -1 | W189: 1 | AE189: 法宝秘籍·壹
A190: =K190*10+O190-1 -> 20021 | B190: 13006 | C190: 110 | D190: =D183+6 -> 455 | E190: 878 | F190: 法宝秘籍 | G190: 后方槽位技能在击中目标时，为法宝提供{0}%充能 | H190: 0 | I190: icon_s2002 | J190: =CONCATENATE("S",K190) -> S2002 | K190: =K183+1 -> 2002 | M190: 1 | N190: 2 | O190: 2 | P190: =_xlfn.TEXTJOIN(";",1,W190:AC190) -> 1 | Q190: 0 | R190: 101;102;103 | S190: 2 | T190: 724 | V190: -1 | W190: 1 | AD190: =CONCATENATE("生命、攻击、防御+",S190,"%") -> 生命、攻击、防御+2% | AE190: 法宝秘籍·贰
A191: 20022 | B191: 13006 | C191: 120 | D191: 456 | E191: 879 | F191: 法宝秘籍 | G191: 后方槽位技能在击中目标时，为法宝提供{0}%充能 | H191: 0 | I191: icon_s2002 | J191: S2002 | K191: 2002 | M191: 1 | N191: 2 | O191: 3 | P191: 1 | Q191: 0 | R191: 101;102;103 | S191: 4 | T191: 724 | V191: -1 | W191: 1 | AD191: =CONCATENATE("生命、攻击、防御+",S191,"%") -> 生命、攻击、防御+4% | AE191: 法宝秘籍·叁
A192: 20023 | B192: 13006 | C192: 130 | D192: 457 | E192: 880 | F192: 法宝秘籍 | G192: 后方槽位技能在击中目标时，为法宝提供{0}%充能 | H192: 0 | I192: icon_s2002 | J192: S2002 | K192: 2002 | M192: 1 | N192: 2 | O192: 4 | P192: 1 | Q192: 0 | R192: 101;102;103 | S192: 6 | T192: 724 | V192: -1 | W192: 1 | AD192: =CONCATENATE("生命、攻击、防御+",S192,"%") -> 生命、攻击、防御+6% | AE192: 法宝秘籍·肆
A193: 20024 | B193: 13006 | C193: 140 | D193: 458 | E193: 881 | F193: 法宝秘籍 | G193: 后方槽位技能在击中目标时，为法宝提供{0}%充能 | H193: 0 | I193: icon_s2002 | J193: S2002 | K193: 2002 | M193: 1 | N193: 2 | O193: 5 | P193: 1 | Q193: 0 | R193: 101;102;103 | S193: 8 | T193: 724 | V193: -1 | W193: 1 | AD193: =CONCATENATE("生命、攻击、防御+",S193,"%") -> 生命、攻击、防御+8% | AE193: 法宝秘籍·伍
A194: 20025 | B194: 13006 | C194: 150 | D194: 459 | E194: 882 | F194: 法宝秘籍 | G194: 后方槽位技能在击中目标时，为法宝提供{0}%充能。 法宝可以瞬间施放，且规避法宝对拼。 | H194: 0 | I194: icon_s2002 | J194: S2002 | K194: 2002 | M194: 1 | N194: 2 | O194: 6 | P194: 3 | Q194: 0 | R194: 101;102;103 | S194: 8 | T194: 724 | V194: -1 | W194: 3 | AD194: 充能增效，法宝瞬发且不对拼 | AE194: 法宝秘籍·陆
I195: =CONCATENATE("icon_s",K195) -> icon_s
A196: =K196*10+O196-1 -> 20030 | B196: 13011 | C196: 100 | D196: =D189+6 -> 460 | E196: =E189+6 -> 883 | F196: 崩脉决 | G196: 前方功法造成伤害时有{0}%概率施加一层对应属性的伤势 | H196: 0 | I196: icon_s2003 | J196: =CONCATENATE("S",K196) -> S2003 | K196: =K189+1 -> 2003 | M196: 1 | N196: 2 | O196: 1 | P196: =_xlfn.TEXTJOIN(";",1,W196:AC196) -> 50 | Q196: 0 | T196: 723 | V196: 1 | W196: 50 | AE196: 崩脉决·壹
A197: =K197*10+O197-1 -> 20031 | B197: 13011 | C197: 110 | D197: =D190+6 -> 461 | E197: 884 | F197: 崩脉决 | G197: 前方功法造成伤害时有{0}%概率施加一层对应属性的伤势 | H197: 0 | I197: icon_s2003 | J197: =CONCATENATE("S",K197) -> S2003 | K197: =K190+1 -> 2003 | M197: 1 | N197: 2 | O197: 2 | P197: =_xlfn.TEXTJOIN(";",1,W197:AC197) -> 50 | Q197: 0 | R197: 101;102;103 | S197: 2 | T197: 723 | V197: 1 | W197: 50 | AD197: =CONCATENATE("生命、攻击、防御+",S197,"%") -> 生命、攻击、防御+2% | AE197: 崩脉决·贰
A198: 20032 | B198: 13011 | C198: 120 | D198: 462 | E198: 885 | F198: 崩脉决 | G198: 前方功法造成伤害时有{0}%概率施加一层对应属性的伤势 | H198: 0 | I198: icon_s2003 | J198: S2003 | K198: 2003 | M198: 1 | N198: 2 | O198: 3 | P198: 50 | Q198: 0 | R198: 101;102;103 | S198: 4 | T198: 723 | V198: 1 | W198: 50 | AD198: =CONCATENATE("生命、攻击、防御+",S198,"%") -> 生命、攻击、防御+4% | AE198: 崩脉决·叁
A199: 20033 | B199: 13011 | C199: 130 | D199: 463 | E199: 886 | F199: 崩脉决 | G199: 前方功法造成伤害时有{0}%概率施加一层对应属性的伤势 | H199: 0 | I199: icon_s2003 | J199: S2003 | K199: 2003 | M199: 1 | N199: 2 | O199: 4 | P199: 50 | Q199: 0 | R199: 101;102;103 | S199: 6 | T199: 723 | V199: 1 | W199: 50 | AD199: =CONCATENATE("生命、攻击、防御+",S199,"%") -> 生命、攻击、防御+6% | AE199: 崩脉决·肆
A200: 20034 | B200: 13011 | C200: 140 | D200: 464 | E200: 887 | F200: 崩脉决 | G200: 前方功法造成伤害时有{0}%概率施加一层对应属性的伤势 | H200: 0 | I200: icon_s2003 | J200: S2003 | K200: 2003 | M200: 1 | N200: 2 | O200: 5 | P200: 50 | Q200: 0 | R200: 101;102;103 | S200: 8 | T200: 723 | V200: 1 | W200: 50 | AD200: =CONCATENATE("生命、攻击、防御+",S200,"%") -> 生命、攻击、防御+8% | AE200: 崩脉决·伍
A201: 20035 | B201: 13011 | C201: 150 | D201: 465 | E201: 888 | F201: 崩脉决 | G201: 前方功法造成伤害时有{0}%概率施加一层对应属性的伤势 | H201: 0 | I201: icon_s2003 | J201: S2003 | K201: 2003 | M201: 1 | N201: 2 | O201: 6 | P201: 100 | Q201: 0 | R201: 101;102;103 | S201: 8 | T201: 723 | V201: 1 | W201: 100 | AD201: 触发概率提升 | AE201: 崩脉决·陆
I202: icon_s
A203: =K203*10+O203-1 -> 20040 | B203: 13007 | C203: 100 | D203: =D196+6 -> 466 | E203: =E196+6 -> 889 | F203: 两仪决 | G203: 前后方法宝如果相生则双生效果增强{0}% | H203: 0 | I203: icon_s2004 | J203: =CONCATENATE("S",K203) -> S2004 | K203: =K196+1 -> 2004 | M203: 1 | N203: 2 | O203: 1 | P203: =_xlfn.TEXTJOIN(";",1,W203:AC203) -> 30 | Q203: 0 | T203: 722 | V203: 1;-1 | W203: 30 | AE203: 两仪决·壹
A204: =K204*10+O204-1 -> 20041 | B204: 13007 | C204: 110 | D204: =D197+6 -> 467 | E204: 890 | F204: 两仪决 | G204: 前后方法宝如果相生则双生效果增强{0}% | H204: 0 | I204: icon_s2004 | J204: =CONCATENATE("S",K204) -> S2004 | K204: =K197+1 -> 2004 | M204: 1 | N204: 2 | O204: 2 | P204: =_xlfn.TEXTJOIN(";",1,W204:AC204) -> 30 | Q204: 0 | R204: 101;102;103 | S204: 2 | T204: 722 | V204: 1;-1 | W204: 30 | AD204: =CONCATENATE("生命、攻击、防御+",S204,"%") -> 生命、攻击、防御+2% | AE204: 两仪决·贰
A205: 20042 | B205: 13007 | C205: 120 | D205: 468 | E205: 891 | F205: 两仪决 | G205: 前后方法宝如果相生则双生效果增强{0}% | H205: 0 | I205: icon_s2004 | J205: S2004 | K205: 2004 | M205: 1 | N205: 2 | O205: 3 | P205: 30 | Q205: 0 | R205: 101;102;103 | S205: 4 | T205: 722 | V205: 1;-1 | W205: 30 | AD205: =CONCATENATE("生命、攻击、防御+",S205,"%") -> 生命、攻击、防御+4% | AE205: 两仪决·叁
A206: 20043 | B206: 13007 | C206: 130 | D206: 469 | E206: 892 | F206: 两仪决 | G206: 前后方法宝如果相生则双生效果增强{0}% | H206: 0 | I206: icon_s2004 | J206: S2004 | K206: 2004 | M206: 1 | N206: 2 | O206: 4 | P206: 30 | Q206: 0 | R206: 101;102;103 | S206: 6 | T206: 722 | V206: 1;-1 | W206: 30 | AD206: =CONCATENATE("生命、攻击、防御+",S206,"%") -> 生命、攻击、防御+6% | AE206: 两仪决·肆
A207: 20044 | B207: 13007 | C207: 140 | D207: 470 | E207: 893 | F207: 两仪决 | G207: 前后方法宝如果相生则双生效果增强{0}% | H207: 0 | I207: icon_s2004 | J207: S2004 | K207: 2004 | M207: 1 | N207: 2 | O207: 5 | P207: 30 | Q207: 0 | R207: 101;102;103 | S207: 8 | T207: 722 | V207: 1;-1 | W207: 30 | AD207: =CONCATENATE("生命、攻击、防御+",S207,"%") -> 生命、攻击、防御+8% | AE207: 两仪决·伍
A208: 20045 | B208: 13007 | C208: 150 | D208: 471 | E208: 894 | F208: 两仪决 | G208: 前后方法宝如果相生则双生效果增强{0}%。 前后方法宝如果不相生则双生效果增加{1}%。 前方后法宝如果相克则双生效果增强{2}%。 | H208: 0 | I208: icon_s2004 | J208: S2004 | K208: 2004 | M208: 1 | N208: 2 | O208: 6 | P208: 30;15;10 | Q208: 0 | R208: 101;102;103 | S208: 8 | T208: 722 | V208: 1;-1 | W208: 30 | X208: 15 | Y208: 10 | AD208: 不相生甚至相克功法也生效 | AE208: 两仪决·陆
... 118 more rows

Sheet SkillPowerupConfig
A1: ID | B1: MainPower | C1: SkillPower1 | D1: LevelupItem | E1: LevelupItemNum | F1: PlayerLevelLimit
A2: int | B2: int | C2: float | D2: int[] | E2: int[] | F2: int
A4: 等级 | B4: 功法对拼标准强度 | C4: 标准强度百分比 | D4: 功法升级所需道具 | E4: 攻击升级所需道具数量 | F4: 升级所需境界
A5: 1 | B5: 100 | C5: 100 | D5: 1005 | E5: 200 | F5: 5
A6: 2 | B6: 120 | C6: 110 | D6: 1005 | E6: 300 | F6: 10
A7: 3 | B7: 140 | C7: 120 | D7: 1005 | E7: 400 | F7: 15
A8: 4 | B8: 160 | C8: 130 | D8: 1005 | E8: 500 | F8: 20
A9: 5 | B9: 180 | C9: 140 | D9: 1005 | E9: 600 | F9: 25
A10: 6 | B10: 200 | C10: 150 | D10: 1005 | E10: 700 | F10: 30
A11: 7 | B11: 220 | C11: 160 | D11: 1005 | E11: 800 | F11: 35
A12: 8 | B12: 240 | C12: 170 | D12: 1005 | E12: 900 | F12: 40
A13: 9 | B13: 260 | C13: 180 | D13: 1005 | E13: 1000 | F13: 45
A14: 10 | B14: 280 | C14: 190 | D14: 1005 | E14: 1100 | F14: 50
A15: 11 | B15: 300 | C15: 200 | D15: 1005 | E15: 1200 | F15: 55
A16: 12 | B16: 320 | C16: 210 | D16: 1005 | E16: 1300 | F16: 60
A17: 13 | B17: 340 | C17: 220 | D17: 1005 | E17: 1400 | F17: 65
A18: 14 | B18: 360 | C18: 230 | D18: 1005 | E18: 1500 | F18: 70
A19: 15 | B19: 380 | C19: 240 | D19: 1005 | E19: 1600 | F19: 75
A20: 16 | B20: 400 | C20: 250 | D20: 1005 | E20: 1700 | F20: 80
A21: 17 | B21: 420 | C21: 260 | D21: 1005 | E21: 1800 | F21: 85
A22: 18 | B22: 440 | C22: 270 | D22: 1005 | E22: 1900 | F22: 90
A23: 19 | B23: 460 | C23: 280 | D23: 1005 | E23: 2000 | F23: 95
A24: 20 | B24: 480 | C24: 290 | D24: 1005 | E24: 2100 | F24: 100
A25: 21 | B25: 500 | C25: 300 | D25: 1005 | E25: 2200 | F25: 105
A26: 22 | B26: 520 | C26: 310 | D26: 1005 | E26: 2300 | F26: 110
A27: 23 | B27: 540 | C27: 320 | D27: 1005 | E27: 2400 | F27: 115
A28: 24 | B28: 560 | C28: 330 | D28: 1005 | E28: 2500 | F28: 120
A29: 25 | B29: 580 | C29: 340 | D29: 1005 | E29: 2600 | F29: 125
A30: 26 | B30: 600 | C30: 350 | D30: 1005 | E30: 2700 | F30: 130
A31: 27 | B31: 620 | C31: 360 | D31: 1005 | E31: 2800 | F31: 135
A32: 28 | B32: 640 | C32: 370 | D32: 1005 | E32: 2900 | F32: 140
A33: 29 | B33: 660 | C33: 380 | D33: 1005 | E33: 3000 | F33: 145
A34: 30 | B34: 680 | C34: 390 | D34: 1005 | E34: 3100 | F34: 150
A35: 31 | B35: 700 | C35: 400 | D35: 1005 | E35: 3200 | F35: 155
A36: 32 | B36: 720 | C36: 410 | D36: 1005 | E36: 3300 | F36: 160
A37: 33 | B37: 740 | C37: 420 | D37: 1005 | E37: 3400 | F37: 165
A38: 34 | B38: 760 | C38: 430 | D38: 1005 | E38: 3500 | F38: 170
A39: 35 | B39: 780 | C39: 440 | D39: 1005 | E39: 3600 | F39: 175
A40: 36 | B40: 800 | C40: 450 | D40: 1005 | E40: 3700 | F40: 180
A41: 37 | B41: 820 | C41: 460 | D41: 1005 | E41: 3800 | F41: 185
A42: 38 | B42: 840 | C42: 470 | D42: 1005 | E42: 3900 | F42: 190
A43: 39 | B43: 860 | C43: 480 | D43: 1005 | E43: 4000 | F43: 195
A44: 40 | B44: 880 | C44: 490 | D44: 1005 | E44: 4100 | F44: 200
A45: 41 | B45: 900 | C45: 500 | D45: 1005 | E45: 4200 | F45: 205
A46: 42 | B46: 920 | C46: 510 | D46: 1005 | E46: 4300 | F46: 210
A47: 43 | B47: 940 | C47: 520 | D47: 1005 | E47: 4400 | F47: 215
A48: 44 | B48: 960 | C48: 530 | D48: 1005 | E48: 4500 | F48: 220
A49: 45 | B49: 980 | C49: 540 | D49: 1005 | E49: 4600 | F49: 225
A50: 46 | B50: 1000 | C50: 550 | D50: 1005 | E50: 4700 | F50: 230
A51: 47 | B51: 1020 | C51: 560 | D51: 1005 | E51: 4800 | F51: 235
A52: 48 | B52: 1040 | C52: 570 | D52: 1005 | E52: 4900 | F52: 240
A53: 49 | B53: 1060 | C53: 580 | D53: 1005 | E53: 5000 | F53: 245
A54: 50 | B54: 1080 | C54: 590 | D54: 1005 | E54: 5100 | F54: 250
A55: 51 | B55: 1100 | C55: 600 | D55: 1005 | E55: 5200 | F55: 255
A56: 52 | B56: 1120 | C56: 610 | D56: 1005 | E56: 5300 | F56: 260
A57: 53 | B57: 1140 | C57: 620 | D57: 1005 | E57: 5400 | F57: 265
A58: 54 | B58: 1160 | C58: 630 | D58: 1005 | E58: 5500 | F58: 270
A59: 55 | B59: 1180 | C59: 640 | D59: 1005 | E59: 5600 | F59: 275
A60: 56 | B60: 1200 | C60: 650 | D60: 1005 | E60: 5700 | F60: 280
A61: 57 | B61: 1220 | C61: 660 | D61: 1005 | E61: 5800 | F61: 285
A62: 58 | B62: 1240 | C62: 670 | D62: 1005 | E62: 5900 | F62: 290
A63: 59 | B63: 1260 | C63: 680 | D63: 1005 | E63: 6000 | F63: 295
A64: 60 | B64: 1280 | C64: 690 | D64: -1 | E64: -1 | F64: 300

Sheet SkillConstant
A1: ID | C1: SkilltoPieceNum | D1: SkillPromoteNeedPieceNum
A2: int | C2: int[] | D2: int[]
C4: 重复功法自动转碎片的数量 | D4: 功法升到对应星级所需碎片数量
A5: 1 | C5: =_xlfn.TEXTJOIN(";",1,C8:C17) -> 1;5;20;100;200;300;500;700;1000;1300 | D5: =_xlfn.TEXTJOIN(";",1,1,D8:D16) -> 1;4;15;80;100;100;200;200;300;300
E6: 升星所需数量
C7: 碎片数量 | D7: 升星所需碎片 | E7: 1星 | F7: 2星 | G7: 3星 | H7: 4星 | I7: 权重 | J7: 标准概率 | K7: 预设概率
B8: 1 | C8: 1 | D8: =C9-C8 -> 4 | E8: =D8/C$8 -> 4 | I8: =C$8*C$9*C$10*C$11/C8 -> 10000 | J8: =I8/SUM(I$8:I$11) -> 0.7936507937 | K8: =1-SUM(K9:K11) -> 0.825
B9: 2 | C9: 5 | D9: =C10-C9 -> 15 | E9: =D9/C$8 -> 15 | F9: =D9/C$9 -> 3 | I9: =C$8*C$9*C$10*C$11/C9 -> 2000 | J9: =I9/SUM(I$8:I$11) -> 0.1587301587 | K9: 0.14 | L9: =K9/J9 -> 0.882
B10: 3 | C10: 20 | D10: 80 | E10: 80 | F10: =D10/C$9 -> 16 | G10: =D10/C$10 -> 4 | I10: 500 | J10: 0.03968253968 | K10: 0.03 | L10: 0.756
B11: 4 | C11: 100 | D11: 100 | E11: 100 | F11: 20 | G11: =D11/C$10 -> 5 | H11: =D11/C$11 -> 1 | I11: 100 | J11: 0.007936507937 | K11: 0.005 | L11: 0.63
B12: 5 | C12: 200 | D12: 100 | E12: 100 | F12: 20 | G12: 5 | H12: =D12/C$11 -> 1
B13: 6 | C13: =C12+D12 -> 300 | D13: 200 | E13: 200 | F13: 40 | G13: 10 | H13: 2
B14: 7 | C14: =C13+D13 -> 500 | D14: 200 | E14: 200 | F14: 40 | G14: 10 | H14: 2
B15: 8 | C15: 700 | D15: 300 | E15: 300 | F15: 60 | G15: 15 | H15: 3
B16: 9 | C16: 1000 | D16: 300 | E16: 300 | F16: 60 | G16: 15 | H16: 3
B17: 10 | C17: 1300
E18: =SUM(E8:E16)+1 -> 1300 | F18: =SUM(F8:F16)+1 -> 260 | G18: =SUM(G8:G16)+1 -> 65 | H18: =SUM(H8:H16)+1 -> 13

Sheet 技能设计
B1: 金 | C1: 木 | D1: 水 | E1: 火 | F1: 土
A2: 1星 | B2: 0.12
A3: 1星 | B3: 0.12
A4: 1星 | B4: 0.12
A5: 2星 | B5: 0.24
A6: 2星 | B6: 0.24
A7: 3星 | B7: 0.36
B8: =SUM(B2:B7)/3 -> 0.4
